{"text_format":"1","workbook":"xlsx","n_sheets":5,"sheets":["Programme","Minors","Cohorts","Selections","temp"],"not_rendered":{"charts":0,"images":8,"macros":1,"external_links":0,"defined_names":15,"comments":0,"pivot_tables":0},"unopened":[],"bounds":{"document_bytes":16777216,"sheet_cells":100000,"rows_first":2000,"rows_last":500,"rows_between":2000,"halvings":0,"cell_chars":16384,"cell_head_chars":4096},"cells_cut":0,"cells_raw":0,"read":"whole","date_system":"1900"}

{"sheet":"Programme","index":0,"n_rows":6,"n_cols":13,"rows_kept":6,"cut":false,"hidden":false,"merged":[[2,12,3,15]]}
[null,"Request for approval of Bachelor's Programme Biology"]
[null,null,"Please select your specialization and starting year of the Bachelor's programme"]
[null,null,"Then click on the 'Generate programme approval request form' button",null,null,null,null,null,null,null,null,null,"Administrator tools"]
[]
[null,null,"Cohorts"]
[null,null,"Please select your cohort"]

{"sheet":"Minors","index":1,"n_rows":414,"n_cols":15,"rows_kept":414,"cut":false,"hidden":true,"merged":[[235,4,235,6],[19,0,19,2],[49,4,49,6],[50,4,50,6],[138,12,138,14],[139,12,139,14],[234,4,234,6]]}
["Minor name","Minimum EC","Maximum EC"]
["Course Code","Course Name","EC","Course Chosen (If Applicable)"]
["Advanced Physics"]
["2014,2015, 2016, 2017, 2018"]
["NWI-NB017B",{"$f":"\"Gasdynamica\"","v":"Gasdynamica"},3,"Yes"]
["NWI-NB032B",{"$f":"\"Inl. Alg. Relativiteitstheorie\"","v":"Inl. Alg. Relativiteitstheorie"},3,"Yes"]
["NWI-NB029B",{"$f":"\"Elektronica\"","v":"Elektronica"},3,"Yes"]
["NWI-NB031B",{"$f":"\"Tensoren en Toepassingen\"","v":"Tensoren en Toepassingen"},3,"Yes"]
["NWI-NB020B",{"$f":"\"Inleiding Groepentheorie\"","v":"Inleiding Groepentheorie"},3,"Yes"]
["","Choose at least two out of:"]
["NWI-NB027B",{"$f":"\"Neurofysica 1\"","v":"Neurofysica 1"},3]
["NWI-NB028C",{"$f":"\"Atoom- en Molecuulfysica\"","v":"Atoom- en Molecuulfysica"},3]
["NWI-NB067C",{"$f":"\"Fysica van Oppervlakken\"","v":"Fysica van Oppervlakken"},3]
["NWI-NB034B",{"$f":"\"Subatomaire Fysica\"","v":"Subatomaire Fysica"},3]
[null,"Electives Physics or Mathematics:"]
[null,"Please add the course manually"]
[]
[]
[]
["Note: Total must add up to 30 EC!"]
["#Eindzinmeteenhastag"]
["Artificial Intelligence"]
["2018",null,null,null,"2016, 2017",null,null,null,2015]
["SOW-BKI212a","Artificiële Intelligentie: Search…",6,"Yes","SOW-BKI212a","Artificiële Intelligentie: Search…",6,"Yes","SOW-BKI212a","Artificiële Intelligentie: Search…",6,"Yes"]
["SOW-BKI247","Cognitive Robotics",6,"Yes","SOW-BKI247","Cognitive Robotics",6,"Yes","SOW-BKI242","Robotica 2",6,"Yes"]
["SOW-BKI329","Representation and interaction",6,"Yes","SOW-BKI329","Representation and interaction",6,"Yes","SOW-BKI312","Kennisrepresentatie en redeneren",6,"Yes"]
[null,"Choose one out of the following",null,null,"#Eindzinmeteenhastag",null,null,null,"#Eindzinmeteenhastag"]
["SOW-BKI211","Computational and formal modeling",6]
["SOW-BKI230A","Neural Networks",6]
["#Eindzinmeteenhastag"]
["Astronomy"]
["2014, 2015, 2016, 2017, 2018"]
["NWI-NB012B",{"$f":"\"Sterevolutie\"","v":"Sterevolutie"},3,"Yes"]
["NWI-NB058C",{"$f":"\"Planetenstelsels\"","v":"Planetenstelsels"},3,"Yes"]
["NWI-NB057B",{"$f":"\"Sterrenstelsels\"","v":"Sterrenstelsels"},3,"Yes"]
["NWI-NB059C",{"$f":"\"Space Astronomy\"","v":"Space Astronomy"},3,"Yes"]
["NWI-NB060A",{"$f":"\"Stralingsprocessen\"","v":"Stralingsprocessen"},3,"Yes"]
["NWI-NB070B",{"$f":"\"Interstellair Medium\"","v":"Interstellair Medium"},3,"Yes"]
["NWI-NB930B",{"$f":"\"Radioastronomie\"","v":"Radioastronomie"},3,"Yes"]
["NWI-NB031B",{"$f":"\"Tensoren en Toepassingen\"","v":"Tensoren en Toepassingen"},3,"Yes"]
["NWI-NB032B",{"$f":"\"Inl. Alg. Relativiteitstheorie\"","v":"Inl. Alg. Relativiteitstheorie"},3,"Yes"]
["","Choose one out of the following"]
["NWI-NB020B",{"$f":"\"Inleiding Groepentheorie\"","v":"Inleiding Groepentheorie"},3]
["NWI-NB017B",{"$f":"\"Gasdynamica\"","v":"Gasdynamica"},3]
["NWI-NB066B",{"$f":"\"Nucleaire Evolutie Heelal\"","v":"Nucleaire Evolutie Heelal"},3]
["#Eindzinmeteenhastag"]
["Biology"]
["2015, 2016, 2017"]
["NWI-BB005B",{"$f":"\"Dierfysiologie\"","v":"Dierfysiologie"},6,"Yes","2018"]
["NWI-BB069B",{"$f":"\"Plantenfysiologie\"","v":"Plantenfysiologie"},6,"Yes","Note: This minor is discontinued as of academic year 2018-2019"]
["","Choose one out of the following"]
["NWI-BB019B",{"$f":"\"Immunology\"","v":"Immunology"},6,null,"#Eindzinmeteenhastag"]
["NWI-BB039C",{"$f":"\"Neurodevelopment\"","v":"Neurodevelopment"},6]
["NWI-BB021B",{"$f":"\"Neurobiofysica\"","v":"Neurobiofysica"},6]
["NWI-MB021B",{"$f":"\"Geographic Information Systems\"","v":"Geographic Information Systems"},6]
["NWI-BB084B",{"$f":"\"Molecular Principles of Development\"","v":"Molecular Principles of Development"},6]
["NWI-BB051B",{"$f":"\"Applied Bioinformatics\"","v":"Applied Bioinformatics"},6]
["#Eindzinmeteenhastag"]
["Bioorganic Chemistry"]
["2016, 2017, 2018",null,null,null,2015,null,null,null,"2014"]
["NWI-MOL101",{"$f":"\"Essentials of Organic Chemistry\"","v":"Essentials of Organic Chemistry"},6,"Yes","NWI-MOL101",{"$f":"\"Essentials of Organic Chemistry\"","v":"Essentials of Organic Chemistry"},6,"Yes","NWI-MOL101",{"$f":"\"Essentials of Organic Chemistry\"","v":"Essentials of Organic Chemistry"},6,"Yes"]
["NWI-MOL053",{"$f":"\"Pharmacochemistry\"","v":"Pharmacochemistry"},6,"Yes","NWI-MOL094",{"$f":"\"Physical Organic Chemistry\"","v":"Physical Organic Chemistry"},3,"Yes","NWI-MOL053",{"$f":"\"Pharmacochemistry\"","v":"Pharmacochemistry"},6,"Yes"]
["NWI-MOL078",{"$f":"\"Nanobiotechnology\"","v":"Nanobiotechnology"},6,"Yes","NWI-MOL078",{"$f":"\"Nanobiotechnology\"","v":"Nanobiotechnology"},6,"Yes","NWI-MOL054",{"$f":"\"Toxicology\"","v":"Toxicology"},6,"Yes"]
[null,"Extra course (Not required)",null,null,null,null,null,null,"","Choose one of the following"]
["NWI-MOL054","Toxicology",6,null,null,null,null,null,"NWI-MOL078",{"$f":"\"Nanobiotechnology\"","v":"Nanobiotechnology"},6]
[null,null,null,null,null,null,null,null,"NWI-MOL079",{"$f":"\"Atoom- en Molecuulbouw\"","v":"Atoom- en Molecuulbouw"},3]
["#Eindzinmeteenhastag",null,null,null,"#Eindzinmeteenhastag",null,null,null,"#Eindzinmeteenhastag"]
["Business Administration"]
["2017, 2018",null,null,null,"2015, 2016"]
["MAN-BCU019B","Interventiemethodologie (BdK)",6,"Yes","MAN-BCU007",{"$f":"\"Organisatietheorie\"","v":"Organisatietheorie"},6,"Yes"]
["MAN-BCU321",{"$f":"\"Systeemtheorie\"","v":"Systeemtheorie"},6,"Yes","MAN-BCU321",{"$f":"\"Systeemtheorie\"","v":"Systeemtheorie"},6,"Yes"]
["","Choose one out of the following",null,null,"","Choose one out of the following"]
["MAN-BCU322A",{"$f":"\"Knowledge Management\"","v":"Knowledge Management"},6,null,"MAN-BCU244A",{"$f":"\"Kennismanagement\"","v":"Kennismanagement"},6]
["MAN-BCU320",{"$f":"\"Organisatieontwerp\"","v":"Organisatieontwerp"},6,null,"MAN-BCU019B",{"$f":"\"Interventiemethodologie (BdK)\"","v":"Interventiemethodologie (BdK)"},6]
["#Eindzinmeteenhastag",null,null,null,"#Eindzinmeteenhastag"]
["Computing Science (Bio, Chem and MLS)"]
["2017, 2018",null,null,null,"2014,2015, 2016"]
["NWI-IBC027",{"$f":"\"Algoritmen en Datastructuren\"","v":"Algoritmen en Datastructuren"},6,"Yes","NWI-IPC014",{"$f":"\"Imperatief Programmeren 1\"","v":"Imperatief Programmeren 1"},3,"Yes"]
["NWI-IPC002",{"$f":"\"Talen en Automaten\"","v":"Talen en Automaten"},3,"Yes","NWI-IPC015",{"$f":"\"Imperatief Programmeren 2\"","v":"Imperatief Programmeren 2"},3,"Yes"]
["NWI-IPC021",{"$f":"\"Security\"","v":"Security"},6,"Yes","NWI-IPC021",{"$f":"\"Security\"","v":"Security"},6,"Yes"]
["","Choose one out of the following",null,null,"","Choose one out of the following"]
["NWI-IPC031",{"$f":"\"Imperatief Programmeren\"","v":"Imperatief Programmeren"},6,null,"NWI-IPC002",{"$f":"\"Talen en Automaten\"","v":"Talen en Automaten"},3]
["NWI-IBC019",{"$f":"\"Operating Systems\"","v":"Operating Systems"},3,null,"NWI-IBC019",{"$f":"\"Operating Systems\"","v":"Operating Systems"},3]
["#Eindzinmeteenhastag",null,null,null,"#Eindzinmeteenhastag"]
["Computing Science (Phys & Math)"]
["2017, 2018",null,null,null,"2016,2015",null,null,null,"2014"]
["NWI-IPC031",{"$f":"\"Imperatief Programmeren\"","v":"Imperatief Programmeren"},6,"Yes","NWI-IPC014",{"$f":"\"Imperatief Programmeren 1\"","v":"Imperatief Programmeren 1"},3,"Yes","NWI-IPC014",{"$f":"\"Imperatief Programmeren 1\"","v":"Imperatief Programmeren 1"},3,"Yes"]
["NWI-IPC002",{"$f":"\"Talen en Automaten\"","v":"Talen en Automaten"},3,"Yes","NWI-IPC015",{"$f":"\"Imperatief Programmeren 2\"","v":"Imperatief Programmeren 2"},3,"Yes","NWI-IPC015",{"$f":"\"Imperatief Programmeren 2\"","v":"Imperatief Programmeren 2"},3,"Yes"]
[null,"Choose one out of the following",null,null,"NWI-IPC002",{"$f":"\"Talen en Automaten\"","v":"Talen en Automaten"},3,"Yes","NWI-IPC002",{"$f":"\"Talen en Automaten\"","v":"Talen en Automaten"},3,"Yes"]
["NWI-IPI005","Object Orientatie",6,null,null,"Choose one out of the following",null,null,"NWI-IBC026",{"$f":"\"Semantiek en Correctheid\"","v":"Semantiek en Correctheid"},3,"Yes"]
["NWI-IBC027","Algoritmen en Datastructuren",6,null,"NWI-IPI005","Object Orientatie",6,null,"NWI-WB009B",{"$f":"\"Logica 2\"","v":"Logica 2"},3,"Yes"]
[null,"Extra courses (None required)",null,null,"NWI-IBC027","Algoritmen en Datastructuren",6,null,"NWI-IBC029",{"$f":"\"Functioneel Programmeren 1\"","v":"Functioneel Programmeren 1"},3,"Yes"]
["NWI-IBI008","Data Mining",6,null,null,"Extra courses (None required)",null,null,"NWI-IBC030",{"$f":"\"Functioneel programmeren 2\"","v":"Functioneel programmeren 2"},3,"Yes"]
["NWI-IBC029","Functioneel Programmeren 1",3,null,"NWI-IBI008","Data Mining",6,null,"NWI-IBC003",{"$f":"\"Berekenbaarheid\"","v":"Berekenbaarheid"},3,"Yes"]
["NWI-IBC030","Functioneel Programmeren 2",3,null,"NWI-IBC029","Functioneel Programmeren 1",3,null,"NWI-IBC028",{"$f":"\"Complexiteit\"","v":"Complexiteit"},3,"Yes"]
["NWI-IBC026","Semantiek en Correctheid",3,null,"NWI-IBC030","Functioneel Programmeren 2",3,null,null,"Note: This minor is for Mathematics students only"]
["NWI-IBC028","Complexiteit",3,null,"NWI-IBC026","Semantiek en Correctheid",3,null,"#Eindzinmeteenhastag"]
["NWI-IBC022","Network Security",3,null,"NWI-IBC028","Complexiteit",3]
["NWI-IBC034","Operating Systems Security",3,null,"NWI-IBC022","Network Security",3]
["#Eindzinmeteenhastag",null,null,null,"NWI-IBC034","Operating Systems Security",3]
[null,null,null,null,"#Eindzinmeteenhastag"]
["Economics"]
["2015, 2016, 2017"]
["","Choose at least 18 EC out of the following"]
["MAN-BCU168",{"$f":"\"Accounting\"","v":"Accounting"},6]
["MAN-BCU2005",{"$f":"\"Behavioural Finance\"","v":"Behavioural Finance"},6]
["MAN-BCU2020",{"$f":"\"Corporate Finance\"","v":"Corporate Finance"},6]
["MAN-BCU2016",{"$f":"\"Financial Accounting and Reporting\"","v":"Financial Accounting and Reporting"},6]
["MAN-BCU302",{"$f":"\"Geschiedenis van het economisch denken\"","v":"Geschiedenis van het economisch denken"},6]
["MAN-BCU2037",{"$f":"\"International Financial Policy\"","v":"International Financial Policy"},6]
["MAN-BCU3022",{"$f":"\"Investment Management\"","v":"Investment Management"},6]
["MAN-BPRA347",{"$f":"\"Kwalitatieve onderzoeksmethodologie\"","v":"Kwalitatieve onderzoeksmethodologie"},6]
["MAN-BCU163",{"$f":"\"Macro-economie\"","v":"Macro-economie"},6]
["MAN-BCU2004",{"$f":"\"Management Accounting and Control\"","v":"Management Accounting and Control"},6]
["MAN-BPRA203",{"$f":"\"Methods of Economic Research\"","v":"Methods of Economic Research"},6]
["MAN-BCU2039",{"$f":"\"Multinational Finance\"","v":"Multinational Finance"},6]
["MAN-BPRO208",{"$f":"\"Project: Financial Instruments\"","v":"Project: Financial Instruments"},6]
["MAN-BCU3016",{"$f":"\"Topics in Business Economics\"","v":"Topics in Business Economics"},6]
["MAN-BCU3019",{"$f":"\"Topics in Financial Economics\"","v":"Topics in Financial Economics"},6]
["MAN-BCU328",{"$f":"\"Voortgezet boekhouden\"","v":"Voortgezet boekhouden"},6]
["#Eindzinmeteenhastag"]
["Education"]
["2014, 2015, 2016, 2017, 2018"]
["N/A","Education Minor",30,"Yes"]
[]
[null,"Programme determined by the 'RDA'"]
["#Eindzinmeteenhastag"]
["Environmental Chemistry"]
["2015, 2016, 2017, 2018"]
["NWI-MB021B",{"$f":"\"Geographic Information Systems\"","v":"Geographic Information Systems"},6,"Yes"]
["NWI-NB046C",{"$f":"\"Chemie&Fys.v.d.Atmosfeer\"","v":"Chemie&Fys.v.d.Atmosfeer"},3,"Yes"]
["NWI-MOL091",{"$f":"\"Green Chemistry\"","v":"Green Chemistry"},3,"Yes"]
["NWI-MOL054",{"$f":"\"Toxicology\"","v":"Toxicology"},6,"Yes"]
["NWI-MB024C","Human and Ecological Risk Assessment",6,"Yes"]
["NWI-MOL065",{"$f":"\"Chemometrics\"","v":"Chemometrics"},6,"Yes"]
["#Eindzinmeteenhastag"]
["Global Challenges, Science and Entrepreneurship"]
["2016",null,null,null,2015,null,null,null,"2014",null,null,null,"2017"]
["NWI-GCSE004",{"$f":"\"Biodiversity and Ecosystems\"","v":"Biodiversity and Ecosystems"},3,"Yes","NWI-GCSE007",{"$f":"\"Beleid, Ondernemerschap en Innovatie\"","v":"Beleid, Ondernemerschap en Innovatie"},3,"Yes","MAN-BKV55","Duurzaam Ondernemen",6,"Yes","Note: This minor is discontinued as of academic year 2017 - 2018"]
["NWI-GCSE002",{"$f":"\"Energy and Sustainability\"","v":"Energy and Sustainability"},3,"Yes",null,"Choose three of the following",null,null,"NWI-GCSE007",{"$f":"\"Beleid, ondernemerschap en innovatie\"","v":"Beleid, ondernemerschap en innovatie"},3,"Yes"]
["NWI-GCSE001",{"$f":"\"Climate Change: Science & Policy\"","v":"Climate Change: Science & Policy"},3,"Yes","NWI-GCSE004",{"$f":"\"Biodiversity and Ecosystems\"","v":"Biodiversity and Ecosystems"},3,null,"","Choose three of the following",null,null,"#Eindzinmeteenhastag"]
["NWI-BB079C",{"$f":"\"Water, Health and Development\"","v":"Water, Health and Development"},3,"Yes","NWI-GCSE009",{"$f":"\"Personalised Health(care)\"","v":"Personalised Health(care)"},3,null,"NWI-GCSE003",{"$f":"\"The value of water\"","v":"The value of water"},3]
["","Choose one of the following",null,null,"NWI-GCSE002","Energy and Sustainability",3,null,"NWI-GCSE004",{"$f":"\"Biodiversity and Ecosystems\"","v":"Biodiversity and Ecosystems"},3]
["MAN-BKV55",{"$f":"\"Duurzaam Ondernemen\"","v":"Duurzaam Ondernemen"},6,null,"NWI-GCSE001",{"$f":"\"Climate Change: Science & Policy\"","v":"Climate Change: Science & Policy"},3,null,"NWI-GCSE001",{"$f":"\"Climate Change: Science & Policy\"","v":"Climate Change: Science & Policy"},3]
["MAN-BCU2029",{"$f":"\"Globalising Worlds\"","v":"Globalising Worlds"},6,null,"NWI-BB079C",{"$f":"\"Water, Health and Development\"","v":"Water, Health and Development"},3,null,"NWI-GCSE002",{"$f":"\"Energy and Materials\"","v":"Energy and Materials"},3]
["NWI-GCSE008",{"$f":"\"Student Company\"","v":"Student Company"},6,null,null,"Choose one of the following",null,null,"NWI-I00036",{"$f":"\"ICT en Samenleving\"","v":"ICT en Samenleving"},3]
["#Eindzinmeteenhastag",null,null,null,"MAN-BKV55",{"$f":"\"Duurzaam Ondernemen\"","v":"Duurzaam Ondernemen"},6,null,"#Eindzinmeteenhastag"]
["",null,null,null,"MAN-BCU2024","Globalising Worlds",6,null,null,null,null,null,""]
["",null,null,null,"NWI-GCSE008","Student Company",6,null,null,null,null,null,""]
["",null,null,null,"#Eindzinmeteenhastag",null,null,null,null,null,null,null,""]
["Information Sciences"]
["2017, 2018",null,null,null,"2016",null,null,null,"2014, 2015"]
["NWI-IPC019",{"$f":"\"Modelleren\"","v":"Modelleren"},3,"Yes","NWI-IPC019",{"$f":"\"Modelleren\"","v":"Modelleren"},3,"Yes","NWI-IPC021",{"$f":"\"Security\"","v":"Security"},6,"Yes"]
["NWI-IPC021",{"$f":"\"Security\"","v":"Security"},6,"Yes","NWI-IPC021",{"$f":"\"Security\"","v":"Security"},6,"Yes","NWI-IPC019",{"$f":"\"Modelleren\"","v":"Modelleren"},3,"Yes"]
["NWI-IPC023",{"$f":"\"Requirements Engineering\"","v":"Requirements Engineering"},3,"Yes","NWI-IPC023",{"$f":"\"Requirements Engineering\"","v":"Requirements Engineering"},3,"Yes","NWI-IBK008",{"$f":"\"Architectuur Digitale Wereld\"","v":"Architectuur Digitale Wereld"},3,"Yes"]
["NWI-IBC020",{"$f":"\"Informatiesystemen\"","v":"Informatiesystemen"},3,"Yes","NWI-IBC019",{"$f":"\"Operating Systems\"","v":"Operating Systems"},3,"Yes",null,"Choose one of the following"]
["#Eindzinmeteenhastag",null,null,null,"NWI-IBC020",{"$f":"\"Informatiesystemen\"","v":"Informatiesystemen"},3,"Yes","NWI-IBC020",{"$f":"\"Informatiesystemen\"","v":"Informatiesystemen"},3]
["",null,null,null,"#Eindzinmeteenhastag",null,null,null,"NWI-IBC019",{"$f":"\"Operating Systems\"","v":"Operating Systems"},3]
["",null,null,null,"",null,null,null,"#Eindzinmeteenhastag"]
["Mathematics (Bio)"]
["2018",null,null,null,"2015, 2016, 2017"]
["NWI-WP029",{"$f":"\"Inleiding Wiskunde\"","v":"Inleiding Wiskunde"},6,"Yes","NWI-WP020",{"$f":"\"Inleiding in de Wiskunde\"","v":"Inleiding in de Wiskunde"},3,"Yes"]
["NWI-WP025",{"$f":"\"Calculus A\"","v":"Calculus A"},6,"Yes","NWI-NP003B",{"$f":"\"Calculus 1\"","v":"Calculus 1"},3,"Yes"]
["NWI-WP027",{"$f":"\"Lineaire Algebra A\"","v":"Lineaire Algebra A"},6,"Yes","NWI-NP004B",{"$f":"\"Calculus 2\"","v":"Calculus 2"},3,"Yes"]
["#Eindzinmeteenhastag",null,null,null,"NWI-NP009C",{"$f":"\"Lineaire Algebra 1\"","v":"Lineaire Algebra 1"},3,"Yes"]
[null,null,null,null,"NWI-NP010B",{"$f":"\"Lineaire Algebra 2\"","v":"Lineaire Algebra 2"},3,"Yes"]
[null,null,null,null,"#Eindzinmeteenhastag"]
["Mathematics (Comp. Science)"]
["2017, 2018",null,null,null,"2015, 2016"]
["NWI-WP030",{"$f":"\"Groepentheorie\"","v":"Groepentheorie"},6,"Yes","NWI-WP021",{"$f":"\"Groepentheorie 1\"","v":"Groepentheorie 1"},3,"Yes"]
["NWI-WP001B",{"$f":"\"Analyse 1\"","v":"Analyse 1"},6,"Yes","NWI-WP022",{"$f":"\"Groepentheorie 2\"","v":"Groepentheorie 2"},3,"Yes"]
["NWI-WB007B",{"$f":"\"Inleiding Statistiek\"","v":"Inleiding Statistiek"},3,"Yes","NWI-WP001B",{"$f":"\"Analyse 1\"","v":"Analyse 1"},6,"Yes"]
["#Eindzinmeteenhastag",null,null,null,"NWI-WB007B",{"$f":"\"Inleiding Statistiek\"","v":"Inleiding Statistiek"},3,"Yes"]
[null,null,null,null,"#Eindzinmeteenhastag"]
["Mathematics (Mol. Sciences)"]
["2017, 2018",null,null,null,"2015, 2016"]
["NWI-WP030",{"$f":"\"Groepentheorie\"","v":"Groepentheorie"},3,"Yes","NWI-WP020",{"$f":"\"Inleiding in de Wiskunde\"","v":"Inleiding in de Wiskunde"},3,"Yes"]
["NWI-WP001B",{"$f":"\"Analyse 1\"","v":"Analyse 1"},6,"Yes","NWI-NP009C",{"$f":"\"Lineaire Algebra 1\"","v":"Lineaire Algebra 1"},3,"Yes"]
["NWI-WB007B",{"$f":"\"Inleiding Statistiek\"","v":"Inleiding Statistiek"},3,"Yes","NWI-NP010B",{"$f":"\"Lineaire Algebra 2\"","v":"Lineaire Algebra 2"},3,"Yes"]
["#Eindzinmeteenhastag",null,null,null,"NWI-NP011B",{"$f":"\"Lineaire Algebra 3\"","v":"Lineaire Algebra 3"},3,"Yes"]
[null,null,null,null,"NWI-WP021",{"$f":"\"Groepentheorie 1\"","v":"Groepentheorie 1"},3,"Yes"]
[null,null,null,null,"","At least one of the following"]
[null,null,null,null,"NWI-WP022",{"$f":"\"Groepentheorie 2\"","v":"Groepentheorie 2"},3]
[null,null,null,null,"NWI-WP001B",{"$f":"\"Analyse 1\"","v":"Analyse 1"},6]
[null,null,null,null,"NWI-NP012B",{"$f":"\"Lineaire Algebra 4\"","v":"Lineaire Algebra 4"},3]
[null,null,null,null,"NWI-NB019C",{"$f":"\"Complexe Functies\"","v":"Complexe Functies"},3]
[null,null,null,null,"#Eindzinmeteenhastag"]
["Mathematics (Physics)"]
["2017, 2018",null,null,null,"2015, 2016"]
["NWI-WP029",{"$f":"\"Inleiding Wiskunde\"","v":"Inleiding Wiskunde"},6,"Yes","NWI-WP020",{"$f":"\"Inleiding in de Wiskunde\"","v":"Inleiding in de Wiskunde"},3,"Yes"]
["NWI-WP030",{"$f":"\"Groepentheorie\"","v":"Groepentheorie"},6,"Yes","NWI-WP021",{"$f":"\"Groepentheorie 1\"","v":"Groepentheorie 1"},3,"Yes"]
["NWI-WP001B",{"$f":"\"Analyse 1\"","v":"Analyse 1"},6,"Yes","NWI-WP022",{"$f":"\"Groepentheorie 2\"","v":"Groepentheorie 2"},3,"Yes"]
["NWI-WB001B",{"$f":"\"Analyse 2\"","v":"Analyse 2"},6,"Yes","NWI-NP012B",{"$f":"\"Lineaire Algebra 4\"","v":"Lineaire Algebra 4"},3,"Yes"]
["NWI-WB012B",{"$f":"\"Ringen en Lichamen\"","v":"Ringen en Lichamen"},6,"Yes","NWI-WP001B",{"$f":"\"Analyse 1\"","v":"Analyse 1"},6,"Yes"]
["#Eindzinmeteenhastag",null,null,null,"NWI-WB001B",{"$f":"\"Analyse 2\"","v":"Analyse 2"},6,"Yes"]
[null,null,null,null,"NWI-WB012B",{"$f":"\"Ringen en Lichamen\"","v":"Ringen en Lichamen"},6,"Yes"]
[null,null,null,null,"#Eindzinmeteenhastag"]
["Medical Biology"]
["2018",null,null,null,"2017",null,null,null,"2016",null,null,null,"2015, 2014"]
["","Choose at least 30 EC out of the following",null,null,"","Choose at least 30 EC out of the following",null,null,"","Choose at least 30 EC out of the following",null,null,null,"Choose at least 30 EC out of the following"]
["NWI-BB017C","Biochemistry and molecular biology II",6,null,"NWI-BB023B",{"$f":"\"Animal Cell Biology\"","v":"Animal Cell Biology"},6,null,"NWI-BB017C",{"$f":"\"Biochemistry and Molecular Biology II\"","v":"Biochemistry and Molecular Biology II"},6,null,"NWI-BB017C",{"$f":"\"Biochemistry and Molecular Biology II\"","v":"Biochemistry and Molecular Biology II"},6]
["NWI-BB019B","Immunology",6,null,"NWI-BB051B",{"$f":"\"Applied Bioinformatics\"","v":"Applied Bioinformatics"},6,null,"NWI-BB023B",{"$f":"\"Celbiologie van Dieren\"","v":"Celbiologie van Dieren"},6,null,"NWI-BB023B",{"$f":"\"Celbiologie van Dieren\"","v":"Celbiologie van Dieren"},6]
["NWI-BB021B","Neurobiofysica",6,null,"NWI-BB017C",{"$f":"\"Biochemistry and Molecular Biology II\"","v":"Biochemistry and Molecular Biology II"},6,null,"NWI-BB081B",{"$f":"\"Cognitive Neuroimaging\"","v":"Cognitive Neuroimaging"},6,null,"NWI-BB081B",{"$f":"\"Cognitive Neuroimaging\"","v":"Cognitive Neuroimaging"},6]
["NWI-BB023B","Animal cell biology",6,null,"NWI-BB081B",{"$f":"\"Cognitive Neuroimaging\"","v":"Cognitive Neuroimaging"},6,null,"NWI-BB048B",{"$f":"\"Endocrinologie\"","v":"Endocrinologie"},6,null,"NWI-BB048B",{"$f":"\"Endocrinologie\"","v":"Endocrinologie"},6]
["NWI-BB025B","Human pathology",6,null,"NWI-BB048B",{"$f":"\"Endocrinology\"","v":"Endocrinology"},6,null,"NWI-BB064B",{"$f":"\"Functionele Genomics\"","v":"Functionele Genomics"},6,null,"NWI-BB064B",{"$f":"\"Functionele Genomics\"","v":"Functionele Genomics"},6]
["NWI-BB034B","Neurobiology",6,null,"NWI-BB064B",{"$f":"\"Functionele Genomics\"","v":"Functionele Genomics"},6,null,"NWI-BB085B",{"$f":"\"Hersenen en Gedrag\"","v":"Hersenen en Gedrag"},6,null,"NWI-BB085B",{"$f":"\"Hersenen en Gedrag\"","v":"Hersenen en Gedrag"},6]
["NWI-BB039C","Neurodevelopment",6,null,"NWI-BB047C",{"$f":"\"Human Embr. and Dev.Biology\"","v":"Human Embr. and Dev.Biology"},6,null,"NWI-BB047C",{"$f":"\"Human Embr. and Dev.Biology\"","v":"Human Embr. and Dev.Biology"},6,null,"NWI-BB047C",{"$f":"\"Human Embr. and Dev.Biology\"","v":"Human Embr. and Dev.Biology"},6]
["NWI-BB047C","Human embryology and developmental biology",6,null,"NWI-BB025B",{"$f":"\"Human Pathology\"","v":"Human Pathology"},6,null,"NWI-BB019B",{"$f":"\"Immunology\"","v":"Immunology"},6,null,"NWI-BB019B",{"$f":"\"Immunology\"","v":"Immunology"},6]
["NWI-BB048B","Endocrinology",6,null,"NWI-BB019B",{"$f":"\"Immunology\"","v":"Immunology"},6,null,"NWI-BB025B",{"$f":"\"Medische Pathologie\"","v":"Medische Pathologie"},6,null,"NWI-BB025B",{"$f":"\"Medische Pathologie\"","v":"Medische Pathologie"},6]
["NWI-BB063B","Neuroscience: from basics to clinic",6,null,"NWI-MOL104",{"$f":"\"Medical Biotechnology\"","v":"Medical Biotechnology"},6,null,"NWI-BB084B",{"$f":"\"Molecular Principles of Development\"","v":"Molecular Principles of Development"},6,null,"NWI-BB084B",{"$f":"\"Molecular Principles of Development\"","v":"Molecular Principles of Development"},6]
["NWI-BB064B","Functional genomics",6,null,"NWI-BB021B",{"$f":"\"Neurobiofysica\"","v":"Neurobiofysica"},6,null,"NWI-BB034B",{"$f":"\"Neurobiologie\"","v":"Neurobiologie"},6,null,"NWI-BB034B",{"$f":"\"Neurobiologie\"","v":"Neurobiologie"},6]
["NWI-BB065B","Pathophysiology of the kidney",6,null,"NWI-BB034B",{"$f":"\"Neurobiologie\"","v":"Neurobiologie"},6,null,"NWI-BB021B",{"$f":"\"Neurobiofysica\"","v":"Neurobiofysica"},6,null,"NWI-BB021B",{"$f":"\"Neurobiofysica\"","v":"Neurobiofysica"},6]
["NWI-BB080B","Neurophysiology of cognition and behaviour",6,null,"NWI-BB039C",{"$f":"\"Neurodevelopment\"","v":"Neurodevelopment"},6,null,"NWI-BB039C",{"$f":"\"Neurodevelopment\"","v":"Neurodevelopment"},6,null,"NWI-BB039C",{"$f":"\"Neurodevelopment\"","v":"Neurodevelopment"},6]
["NWI-BB081B","Cognitive neuroimaging",6,null,"NWI-BB080B",{"$f":"\"Neurophys. of Cognition and Behaviour\"","v":"Neurophys. of Cognition and Behaviour"},6,null,"NWI-BB080B",{"$f":"\"Neurophys. of Cognition and Behaviour\"","v":"Neurophys. of Cognition and Behaviour"},6,null,"NWI-BB080B",{"$f":"\"Neurophys. of Cognition and Behaviour\"","v":"Neurophys. of Cognition and Behaviour"},6]
["NWI-BB084B","Molecular principles of development",6,null,"NWI-BB063B",{"$f":"\"Neuroscience:van Basis tot Kliniek\"","v":"Neuroscience:van Basis tot Kliniek"},6,null,"NWI-BB063B",{"$f":"\"Neuroscience:van Basis tot Kliniek\"","v":"Neuroscience:van Basis tot Kliniek"},6,null,"NWI-BB063B",{"$f":"\"Neuroscience:van Basis tot Kliniek\"","v":"Neuroscience:van Basis tot Kliniek"},6]
["NWI-BB085B","Brain and behaviour",6,null,"NWI-BB065B",{"$f":"\"Pathofysiology of the Kidney\"","v":"Pathofysiology of the Kidney"},6,null,"NWI-BB065B",{"$f":"\"Pathofysiologie van de Nier\"","v":"Pathofysiologie van de Nier"},6,null,"NWI-BB065B",{"$f":"\"Pathofysiologie van de Nier\"","v":"Pathofysiologie van de Nier"},6]
["NWI-BB086","Genomics for health and environment",12,null,"MED-MIN16","Translational Neuroscience",12,null,"NWI-BB051B",{"$f":"\"Applied Bioinformatics\"","v":"Applied Bioinformatics"},6,null,"NWI-BB051B",{"$f":"\"Applied Bioinformatics\"","v":"Applied Bioinformatics"},6]
["NWI-MOL104","Medical biotechnology",6,null,"#Eindzinmeteenhastag",null,null,null,"NWI-MOL104",{"$f":"\"Medical Biotechnology\"","v":"Medical Biotechnology"},6,null,"NWI-BB031B",{"$f":"\"Medische Biotechnologie\"","v":"Medische Biotechnologie"},6]
["MED-MIN16","Translational neuroscience",12,null,null,null,null,null,"MED-MIN16","Translational Neuroscience",12,null,"#Eindzinmeteenhastag"]
["#Eindzinmeteenhastag",null,null,null,null,null,null,null,"#Eindzinmeteenhastag"]
["Medicine"]
["2018",null,null,null,"2016, 2017",null,null,null,"2011, 2012, 2013, 2014, 2015"]
["MED-B2MGZQ5","Mechanismen gezondheid en ziekte, nieuwv",6,"Yes","NWI-BB101","Mech. van gezondheid en ziekte deel 1",6,"Yes","NWI-BB075B1","Methoden van geneeskunde",6,"Yes"]
["MED-B2MGZQ6","Mechanismen gezondheid en ziekte, bew&st",6,"Yes","NWI-BB102","Mech. van gezondheid en ziekte deel 2",6,"Yes","NWI-BB075B2","Inl. in de oncologie, immunologie, hematologie en infectieziekten",6,"Yes"]
["MED-MIBIOPPG","Prakt. en Princ. v.d. Geneeskunde (MNWI)",3,"Yes","NWI-BB103","Praktijk en principes van de GNK deel 1",3,"Yes","NWI-BB075B3","Inl. in de aandoeningen van circulatie en respiratie en hyperlipidemie",6,"Yes"]
["MED-B2PPGS3","Prakt. en Princ. v.d. Geneeskunde Sem.3",5,"Yes","NWI-BB104","Praktijk en principes van de GNK deel 2",4,"Yes","NWI-BB075B4","Inl. in de aandoeningen van de tractus digestivus",6,"Yes"]
["MED-B2CSIS3","CSI, semester 3",3,"Yes","NWI-BB105","Patiënt contact onderwijs ",3,"Yes","NWI-BB075B5","Inl. in de Nefrologie & Urologie",6,"Yes"]
["MED-B2PFS3","Professionaliteit, derde semester",2,"Yes","NWI-BB106","Anatomie: Hoofdlijnen Func. Morfologie",6,"Yes","#Eindzinmeteenhastag"]
["MED-MIBIOZST","Zorgstage (Minor NWI)",2,"Yes","NWI-BB107","Farmacologie",2,"Yes"]
["MED-MIBIOFM","Anatomie: Funct. Morf. (Minor NWI)",2,"Yes","NWI-BB108","Medisch professionele vorming",0,"Yes"]
["MED-MIBIOFAR","Farmacologie (Minor NWI)",1,"Yes"]
["#Eindzinmeteenhastag"]
["Nanoscience"]
["2015, 2016",null,null,null,"2017"]
["NWI-NP007B",{"$f":"\"Speciale Relativiteitstheorie\"","v":"Speciale Relativiteitstheorie"},3,"Yes","Note: This minor is discontinued as of academic year 2017 - 2018"]
["NWI-MOL039",{"$f":"\"Fysisch Practicum\"","v":"Fysisch Practicum"},6,"Yes"]
["NWI-NP027B",{"$f":"\"Inl. Nanowet. en Technol.\"","v":"Inl. Nanowet. en Technol."},3,"Yes","#Eindzinmeteenhastag"]
["NWI-NB044B",{"$f":"\"Nanofysica\"","v":"Nanofysica"},3,"Yes"]
["NWI-NB071B",{"$f":"\"SdM: Atoom- en Molecuulfysica\"","v":"SdM: Atoom- en Molecuulfysica"},3,"Yes"]
["NWI-NB072B",{"$f":"\"SdM:Vaste stoffysica\"","v":"SdM:Vaste stoffysica"},3,"Yes"]
["NWI-NB029B",{"$f":"\"Elektronica\"","v":"Elektronica"},3,"Yes"]
["#Eindzinmeteenhastag"]
["Neuroscience (Math)"]
["2018",null,null,null,"2015, 2016, 2017",null,null,null,2014]
["NWI-NB027B",{"$f":"\"Neurofysica 1\"","v":"Neurofysica 1"},3,"Yes","NWI-NB027B",{"$f":"\"Neurofysica 1\"","v":"Neurofysica 1"},3,"Yes","NWI-WB007B",{"$f":"\"Inleiding Statistiek\"","v":"Inleiding Statistiek"},3,"Yes"]
["NWI-NB074B",{"$f":"\"Neurofysica 2\"","v":"Neurofysica 2"},3,"Yes","NWI-NB074B",{"$f":"\"Neurofysica 2\"","v":"Neurofysica 2"},3,"Yes","NWI-NP008C",{"$f":"\"Warmteleer\"","v":"Warmteleer"},3,"Yes"]
["NWI-NB062B",{"$f":"\"Inleiding Machine Learning\"","v":"Inleiding Machine Learning"},3,"Yes","NWI-NB062B",{"$f":"\"Inleiding Machine Learning\"","v":"Inleiding Machine Learning"},3,"Yes","NWI-NB033C",{"$f":"\"Statistische Mechanica\"","v":"Statistische Mechanica"},6,"Yes"]
["NWI-NB036B",{"$f":"\"Psychofysica 1\"","v":"Psychofysica 1"},3,"Yes","NWI-NB036B",{"$f":"\"Psychofysica 1\"","v":"Psychofysica 1"},3,"Yes","NWI-NB001B",{"$f":"\"Analytische Mechanica\"","v":"Analytische Mechanica"},3,"Yes"]
["NWI-NB068B",{"$f":"\"Nonlinear Dynamics,Chaos and Application\"","v":"Nonlinear Dynamics,Chaos and Application"},3,"Yes","NWI-NB068B",{"$f":"\"Nonlinear Dynamics,Chaos and Application\"","v":"Nonlinear Dynamics,Chaos and Application"},3,"Yes","NWI-WB049B",{"$f":"\"Inleiding Fouriertheorie\"","v":"Inleiding Fouriertheorie"},3,"Yes"]
["NWI-MOL014",{"$f":"\"Electricity and Magnetism 1A\"","v":"Electricity and Magnetism 1A"},3,"Yes","","Choose one of the following",null,null,"NWI-WB064B",{"$f":"\"Toegepaste Stochastiek\"","v":"Toegepaste Stochastiek"},6,"Yes"]
["","Choose one of the following",null,null,"NWI-NP008C",{"$f":"\"Warmteleer\"","v":"Warmteleer"},3,null,"NWI-NB062B",{"$f":"\"Inleiding Machine Learning\"","v":"Inleiding Machine Learning"},3,"Yes"]
["NWI-NP008C",{"$f":"\"Warmteleer\"","v":"Warmteleer"},3,null,"NWI-MOL017",{"$f":"\"Thermodynamics\"","v":"Thermodynamics"},3,null,"NWI-NB027B",{"$f":"\"Neurofysica 1\"","v":"Neurofysica 1"},3,"Yes"]
["NWI-MOL017",{"$f":"\"Thermodynamics\"","v":"Thermodynamics"},3,null,"","Choose one of the following",null,null,"#Eindzinmeteenhastag"]
["#Eindzinmeteenhastag",null,null,null,"NWI-NP019B",{"$f":"\"Elektriciteit en Magnetisme 1B\"","v":"Elektriciteit en Magnetisme 1B"},3]
[null,null,null,null,"NWI-MOL014",{"$f":"\"Electricity and Magnetism 1A\"","v":"Electricity and Magnetism 1A"},3]
[null,null,null,null,"#Eindzinmeteenhastag"]
["Neuroscience (Physics and Science)"]
["2015, 2016, 2017, 2018",null,null,null,"2014"]
["NWI-NB027B",{"$f":"\"Neurofysica 1\"","v":"Neurofysica 1"},3,"Yes","NWI-WB006C",{"$f":"\"Voortgezette Kansrekening\"","v":"Voortgezette Kansrekening"},3,"Yes"]
["NWI-NB074B",{"$f":"\"Neurofysica 2\"","v":"Neurofysica 2"},3,"Yes","NWI-NB027B",{"$f":"\"Neurofysica 1\"","v":"Neurofysica 1"},3,"Yes"]
["NWI-NB062B",{"$f":"\"Inleiding Machine Learning\"","v":"Inleiding Machine Learning"},3,"Yes","NWI-NB074B",{"$f":"\"Neurofysica 2\"","v":"Neurofysica 2"},3,"Yes"]
["NWI-NB036B",{"$f":"\"Psychofysica 1\"","v":"Psychofysica 1"},3,"Yes","NWI-MOL058",{"$f":"\"Introduction to Magnetic Resonance\"","v":"Introduction to Magnetic Resonance"},3,"Yes"]
["NWI-NB068B",{"$f":"\"Nonlinear Dynamics,Chaos and Application\"","v":"Nonlinear Dynamics,Chaos and Application"},3,"Yes","NWI-NB062B",{"$f":"\"Inleiding Machine Learning\"","v":"Inleiding Machine Learning"},3,"Yes"]
["#Eindzinmeteenhastag",null,null,null,"NWI-WB064B",{"$f":"\"Toegepaste Stochastiek\"","v":"Toegepaste Stochastiek"},6,"Yes"]
[null,null,null,null,"NWI-MOL074",{"$f":"\"Inleiding in de Neuroimaging Technieken\"","v":"Inleiding in de Neuroimaging Technieken"},3,"Yes"]
[null,null,null,null,"NWI-NB068B",{"$f":"\"Nonlinear Dynamics,Chaos and Application\"","v":"Nonlinear Dynamics,Chaos and Application"},3,"Yes"]
[null,null,null,null,"","Choose one of the following"]
[null,null,null,null,"NWI-WB007B",{"$f":"\"Inleiding Statistiek\"","v":"Inleiding Statistiek"},3]
[null,null,null,null,"NWI-NB036B",{"$f":"\"Psychofysica 1\"","v":"Psychofysica 1"},3]
[null,null,null,null,"NWI-NM102",{"$f":"\"Auditory Perception and Technology\"","v":"Auditory Perception and Technology"},3]
[null,null,null,null,null,"NOTE: This minor is primarily meant for Physics students"]
[null,null,null,null,"#Eindzinmeteenhastag"]
["Physical Organic Chemistry"]
["2017, 2018",null,null,null,"2015, 2016",null,null,null,"2014"]
["NWI-MOL101",{"$f":"\"Essentials of Organic Chemistry\"","v":"Essentials of Organic Chemistry"},6,"Yes","NWI-MOL101",{"$f":"\"Essentials of Organic Chemistry\"","v":"Essentials of Organic Chemistry"},6,"Yes","NWI-MOL101",{"$f":"\"Essentials of Organic Chemistry\"","v":"Essentials of Organic Chemistry"},6,"Yes"]
["NWI-MOL071","Crystal Growth",3,"Yes","NWI-MOL057",{"$f":"\"Magnetic Resonance\"","v":"Magnetic Resonance"},6,"Yes","NWI-MOL040",{"$f":"\"Thermodynamica 2\"","v":"Thermodynamica 2"},3,"Yes"]
["NWI-MOL094",{"$f":"\"Physical Organic Chemistry\"","v":"Physical Organic Chemistry"},3,"Yes","NWI-MOL094",{"$f":"\"Physical Organic Chemistry\"","v":"Physical Organic Chemistry"},3,"Yes","NWI-MOL094",{"$f":"\"Fysisch Organische Chemie\"","v":"Fysisch Organische Chemie"},3,"Yes"]
["NWI-MOL106","Toegepaste Quantumchemie",3,"Yes","NWI-MOL071",{"$f":"\"Kristalgroei\"","v":"Kristalgroei"},3,"Yes","NWI-MOL071",{"$f":"\"Kristalgroei\"","v":"Kristalgroei"},3,"Yes"]
[null,null,null,null,null,null,null,null,"#Eindzinmeteenhastag"]
[]
[]
["#Eindzinmeteenhastag",null,null,null,"#Eindzinmeteenhastag"]
["Physics"]
["2018",null,null,null,"2017",null,null,null,"2015, 2016"]
["NWI-NP035",{"$f":"\"Lineaire Mechanica\"","v":"Lineaire Mechanica"},6,"Yes","NWI-NB001B",{"$f":"\"Analytische Mechanica\"","v":"Analytische Mechanica"},3,"Yes","NWI-NP001B",{"$f":"\"Mechanica 1B\"","v":"Mechanica 1B"},3,"Yes"]
["NWI-NP036","Rotaties en Periodiek Bewegingen",3,"Yes","NWI-NP019B",{"$f":"\"Elektriciteit en Magnetisme\"","v":"Elektriciteit en Magnetisme"},6,"Yes","NWI-NP002B",{"$f":"\"Mechanica 2B\"","v":"Mechanica 2B"},3,"Yes"]
["NWI-NP021D",{"$f":"\"Golven en Optica\"","v":"Golven en Optica"},3,"Yes","NWI-NP022B",{"$f":"\"Inleiding Kwantummechanica\"","v":"Inleiding Kwantummechanica"},3,"Yes","NWI-NP021D",{"$f":"\"Golven en Optica\"","v":"Golven en Optica"},3,"Yes"]
["NWI-NP022B",{"$f":"\"Inleiding Kwantummechanica\"","v":"Inleiding Kwantummechanica"},3,"Yes","NWI-NB013B",{"$f":"\"Kwantummechanica 1a\"","v":"Kwantummechanica 1a"},3,"Yes","NWI-NP022B",{"$f":"\"Inleiding Kwantummechanica\"","v":"Inleiding Kwantummechanica"},3,"Yes"]
["NWI-NB001C",{"$f":"\"Voortgezette Mechanica\"","v":"Voortgezette Mechanica"},6,"Yes","NWI-NB014B",{"$f":"\"Kwantummechanica 1b\"","v":"Kwantummechanica 1b"},3,"Yes","NWI-NB006B",{"$f":"\"Trillingen en Golven\"","v":"Trillingen en Golven"},3,"Yes"]
["NWI-NP037",{"$f":"\"Elektriciteit en Magnetisme\"","v":"Elektriciteit en Magnetisme"},6,"Yes","NWI-NP035",{"$f":"\"Lineaire Mechanica\"","v":"Lineaire Mechanica"},6,"Yes","NWI-NB001B",{"$f":"\"Analytische Mechanica\"","v":"Analytische Mechanica"},3,"Yes"]
["#Eindzinmeteenhastag",null,null,null,"NWI-NP036","Rotaties en Periodieke Bewegingen",3,"Yes","NWI-NP019B",{"$f":"\"Elektriciteit en Magnetisme 1B\"","v":"Elektriciteit en Magnetisme 1B"},3,"Yes"]
[null,null,null,null,"NWI-NB006B",{"$f":"\"Trillingen en Golven\"","v":"Trillingen en Golven"},3,"Yes","NWI-NB013B",{"$f":"\"Kwantummechanica 1a\"","v":"Kwantummechanica 1a"},3,"Yes"]
[null,null,null,null,"#Eindzinmeteenhastag",null,null,null,"NWI-NP020B",{"$f":"\"Elektriciteit en Magnetisme 2B\"","v":"Elektriciteit en Magnetisme 2B"},3,"Yes"]
[null,null,null,null,null,null,null,null,"NWI-NB014B",{"$f":"\"Kwantummechanica 1b\"","v":"Kwantummechanica 1b"},3,"Yes"]
[null,null,null,null,null,null,null,null,"#Eindzinmeteenhastag"]
["Sustainable Chemistry"]
["2014, 2015, 2016, 2017, 2018"]
["NWI-MOL101",{"$f":"\"Essentials of Organic Chemistry\"","v":"Essentials of Organic Chemistry"},6,"Yes"]
["NWI-MOL091",{"$f":"\"Green Chemistry\"","v":"Green Chemistry"},3,"Yes"]
["NWI-MB021B",{"$f":"\"Geographic Information Systems\"","v":"Geographic Information Systems"},6,"Yes"]
[]
[]
[]
["#Eindzinmeteenhastag"]
["Other"]
["2014, 2015, 2016, 2017, 2018, 2019, 2020"]
["",null,null,"Yes"]
["",null,null,"Yes"]
["",null,null,"Yes"]
["",null,null,"Yes"]
["",null,null,"Yes"]
[""]
[""]
[""]
[""]
[""]
[""]
["Name of your minor:"]
["Prospectus link if minor outside FNWI:"]
["#Eindzinmeteenhastag"]
[]
["No Minor"]
["2014, 2015, 2016, 2017, 2018, 2019, 2020"]
["You have chosen not to do a minor."]
[]
["#Eindzinmeteenhastag"]
[]
[]
["Informatiekunde voor Informatica (2014)"]
["2016,2015,2014,Select your prospectus,Kies de studiegids"]
["NWI-IBK008",{"$f":"\"Architectuur Digitale Wereld\"","v":"Architectuur Digitale Wereld"},3,"Yes"]
["MAN-BCU321",null,null,"Yes"]
["","Choose one of the following"]
["MAN-BCU019","Intervention Methodology",6]
["MAN-BCU244A","Kennismanagement",6]
["#Eindzinmeteenhastag"]
[]
["Bedrijfskunde voor Informatica (2014)"]
["2016,2015,2014,Select your prospectus,Kies de studiegids"]
["MAN-BCU007",null,null,"Yes"]
["MAN-BCU321",null,null,"Yes"]
["","Choose one of the following"]
["MAN-BCU244A","Kennismanagement",6]
["MAN-BCU019","Intervention Methodology",6]
["#Eindzinmeteenhastag"]
[]
["Biologie (Math) (2014)"]
["2016,2015,2014,Select your prospectus,Kies de studiegids"]
["NWI-BP007B",{"$f":"\"Celbiochemie\"","v":"Celbiochemie"},6,"Yes"]
["NWI-BB023B",{"$f":"\"Celbiologie van Dieren\"","v":"Celbiologie van Dieren"},6,"Yes"]
["NWI-BB017C",{"$f":"\"Biochemistry and Molecular Biology II\"","v":"Biochemistry and Molecular Biology II"},6,"Yes"]
["NWI-BB051B",{"$f":"\"Toegepaste Bioinformatica\"","v":"Toegepaste Bioinformatica"},6,"Yes"]
["#Eindzinmeteenhastag"]
[]
["Double Minor"]
["2014, 2015, 2016, 2017, 2018, 2019, 2020"]
["Minor 1:"]
[null,null,null,"Yes"]
[null,null,null,"Yes"]
[null,null,null,"Yes"]
[null,null,null,"Yes"]
[null,null,null,"Yes"]
[null,null,null,"Yes"]
[null,null,null,"Yes"]
[null,null,null,"Yes"]
[null,null,null,"Yes"]
[null,null,null,"Yes"]
["Minor 2:"]
[null,null,null,"Yes"]
[null,null,null,"Yes"]
[null,null,null,"Yes"]
[null,null,null,"Yes"]
[null,null,null,"Yes"]
[null,null,null,"Yes"]
[null,null,null,"Yes"]
[null,null,null,"Yes"]
[null,null,null,"Yes"]
[null,null,null,"Yes"]
["Name of minor 1:"]
["Prospectus link if minor outside FNWI:"]
["Name of minor 2:"]
["Prospectus link if minor outside FNWI:"]
["#Eindzinmeteenhastag"]
["Minor from another faculty"]
["2014, 2015, 2016, 2017, 2018, 2019, 2020"]
["",null,null,"Yes"]
["",null,null,"Yes"]
["",null,null,"Yes"]
["",null,null,"Yes"]
["",null,null,"Yes"]
[""]
[""]
[""]
[""]
[""]
[""]
["Name of your minor:"]
["Prospectus link (if applicable):"]
["#Eindzinmeteenhastag"]
["Free Minor"]
["2014, 2015, 2016, 2017, 2018, 2019, 2020"]
["",null,null,"Yes"]
["",null,null,"Yes"]
["",null,null,"Yes"]
["",null,null,"Yes"]
["",null,null,"Yes"]
[""]
[""]
[""]
[""]
[""]
[""]
["Name of your minor:"]
["#Eindzinmeteenhastag"]

{"sheet":"Cohorts","index":2,"n_rows":822,"n_cols":8,"rows_kept":822,"cut":false,"hidden":true,"merged":[[789,2,789,5],[790,2,790,6],[791,2,791,6],[812,1,812,2],[815,1,815,3],[816,1,820,6],[724,2,724,8],[725,2,725,8],[726,2,726,8],[727,2,727,8],[728,2,728,8],[787,2,787,6],[788,2,788,6],[688,2,688,6],[689,2,689,6],[710,1,710,2],[713,1,713,3],[714,1,718,6],[684,1,684,2],[684,4,684,5],[685,2,685,6],[686,2,686,6],[687,2,687,5],[621,2,621,8],[622,2,622,8],[623,2,623,8],[624,2,624,8],[625,2,625,8],[507,1,507,3],[508,1,512,6],[610,1,610,3],[611,1,615,6],[607,1,607,2],[301,1,301,3],[302,1,306,6],[403,1,403,3],[404,1,408,6],[585,2,585,6],[586,2,586,6],[415,2,415,8],[416,2,416,8],[418,2,418,8],[417,2,417,8],[374,2,374,6],[504,1,504,2],[583,2,583,6],[584,2,584,5],[481,2,481,6],[482,2,482,6],[581,1,581,2],[581,4,581,5],[522,2,522,8],[518,2,518,8],[519,2,519,8],[520,2,520,8],[521,2,521,8],[582,2,582,6],[298,1,298,2],[196,1,196,2],[173,2,173,6],[169,4,169,5],[170,2,170,6],[108,2,108,8],[97,1,97,3],[98,1,102,6],[199,1,199,3],[210,2,210,8],[211,2,211,8],[212,2,212,8],[213,2,213,8],[200,1,204,6],[273,2,273,6],[275,2,275,6],[276,2,276,6],[274,2,274,5],[214,2,214,8],[271,1,271,2],[271,4,271,5],[272,2,272,6],[174,2,174,6],[480,2,480,5],[312,2,312,8],[313,2,313,8],[314,2,314,8],[315,2,315,8],[316,2,316,8],[477,1,477,2],[477,4,477,5],[478,2,478,6],[479,2,479,6],[373,1,373,2],[373,4,373,5],[400,1,400,2],[414,2,414,8],[375,2,375,6],[376,2,376,5],[377,2,377,6],[378,2,378,6],[5,2,5,8],[6,2,6,8],[7,2,7,8],[8,2,8,8],[9,2,9,8],[71,2,71,6],[72,2,72,6],[171,2,171,6],[172,2,172,5],[94,1,94,2],[109,2,109,8],[110,2,110,8],[111,2,111,8],[112,2,112,8],[169,1,169,2],[67,1,67,2],[67,4,67,5],[68,2,68,6],[69,2,69,6],[70,2,70,5]]}
["Laat deze kolom leeg, behalve de jaartallen en de scheidingswoorden"]
[2011]
[null,"Request form for approval of your Bachelor's Programme: Biology Cohort 2011"]
[null,"Once you wish to get approval, mail this form to fnwi.examcies@science.ru.nl"]
[]
[null,"Name:"]
[null,"Student number: "]
[null,"E-mail:"]
[null,"Phone number:"]
[null,"Cohort:","2011"]
[]
[null,null,"Compulsory Courses (45 EC)",null,null,null,"Adjustments to these Courses"]
[null,"Course Code","Course Name","EC","Choose","Course Code","Course Name","EC"]
[null,"NWI-BB005B","Dierfysiologie",6,"Yes"]
[null,"NWI-BB011B","Biologie en Samenleving ",3,"Yes"]
[null,"NWI-BB028B","Geschiedenis van de Biologie ",3,"Yes"]
[null,"NWI-BB068B","Biofysica",3,"Yes"]
[null,"NWI-BB069B","Plantenfysiologie",6,"Yes"]
[null,"NWI-BB070B","Biologie van Micro-organismen ",3,"Yes"]
[null,"NWI-BB071B","Mens en Milieu ",3,"Yes"]
[null,"NWI-BB072C","Bacheloressay",6,"Yes"]
[null,"NWI-BB076B","Academische Vaardigheden ",3,"Yes"]
[null,"NWI-BB077B","Statistiek II",3,"Yes"]
[null,"NWI-FCEM02B","Schrijfvaardigheid",3,"Yes"]
[null,"NWI-FFIL100","Inleiding in de filosofie en ethiek",3,"Yes"]
[null,null,"Total:",{"$f":"SUMIFS(D14:D25,H14:H25,\"\",E14:E25,\"Yes\")+SUM(H14:H25)","v":45}]
[]
[null,null,"Minor Space (Not mandatory, Max 30 EC)"]
[null,"In case you are egligible for two minors, please select the minor here which you want to have mentioned on your degree."]
[null,"Please provide the name of the minor as well as the cohort of the prospectus it is found in. Should you have selected the wrong minor by mistake, please regenerate the whole form."]
[null,"Do NOT forget to generate the minor, even if you did the medical biology minor. Your request will be REJECTED if you provide a minor name without the courses here."]
[null,"Do NOT select more than 30 EC of courses within your minor. This is not allowed and your programme proposal will be REJECTED"]
[null,"Minor:","Please select your minor here"]
[null,"Prospectus Year:","Select your prospectus",null,null,null,"Adjustments to the minor"]
["#hieronderbegintdeminormeteenhashtag","Code","Course Name","EC","Choose (Y/N)","Course Code","Course Name","EC"]
[]
[]
["#hierbovenbegintdeminormeteenhashtag",null,"Total:",{"$f":"SUMIFS(D35:D37,G35:G37,\"\",E35:E37,\"Yes\")+SUM(H35:H37)","v":0}]
[]
[null,"#pagebreakinhetwit"]
[null,null,"Differentiation Courses"]
[null,"Code","Course Name","EC","Taken? (Y/N)"]
[null,{"$f":"VLOOKUP(C43,nocatdiff_courses_list,2,0)","v":""},"Please select your differentation course",{"$f":"VLOOKUP(C43,nocatdiff_courses_list,3,0)","v":""}]
[null,"","",""]
[null,"","",""]
[null,"","",""]
[null,"","",""]
[null,"","",""]
[null,"","",""]
[null,"","",""]
[null,"","",""]
[null,"","",""]
[null,"","",""]
[null,"","",""]
[null,"","",""]
[null,"","",""]
[null,"","",""]
[null,"","",""]
[null,null,"Total:",{"$f":"SUM(D43:D58)","v":0}]
[]
[null,null,"Free Elective(s)"]
[]
[]
[null,null,"Total:",{"$f":"SUM(D62:D63)","v":0}]
[]
[]
[null,null,"Bachelor's Internship (NWI-BB-STAGE) (12 EC)*"]
[null,"If extended, please edit the amount of EC here:",null,12]
[null,"Title:"]
[null,"First supervisor:"]
[null,"Department:","Select the department"]
[null,"Second supervisor:","Portfolio Supervisor"]
[null,"Department:","Leave this blank if not yet known"]
[null,null,"sum:",{"$f":"SUM(D68)","v":12}]
[]
[]
[null,null,"Total EC:",{"$f":"SUM(D74,D64,D59,D38,D26)","v":57}]
[]
[null,"Please make sure that the above programme is 120 EC. Any extra courses may be filled in below. These courses do not count towards graduating with honours. "]
[null,"You may ask for exemption from this rule at the Examining Board."]
[null,"Extracurricular courses (above 120 EC)"]
[null,"Code","Course Name","EC"]
[]
[]
[]
[]
[]
[]
[]
[]
[]
[]
[null,null,"Totaal:",{"$f":"SUM(D83:D92)","v":0}]
[]
[null,"Total EC including extracurricular courses",null,{"$f":"SUM(D93,D77)","v":57}]
[]
[]
[null,"Remarks about your programme:"]
[]
[]
[]
[]
[]
["#scheidingswoordmeteenhashtag"]
[2012]
[null,"Request form for approval of your Bachelor's Programme: Biology Cohort 2012"]
[null,"Once you wish to get approval, mail this form to fnwi.examcies@science.ru.nl"]
[]
[null,"Name:"]
[null,"Student number: "]
[null,"E-mail:"]
[null,"Phone number:"]
[null,"Cohort:","2012"]
[]
[null,null,"Compulsory Courses (42 EC)",null,null,null,"Adjustments to these Courses"]
[null,"Course Code","Course Name","EC","Choose","Course Code","Course Name","EC"]
[null,"NWI-BB005B","Dierfysiologie",6,"Yes"]
[null,"NWI-BB011B","Biologie en Samenleving ",3,"Yes"]
[null,"NWI-BB028B","Geschiedenis van de Biologie ",3,"Yes"]
[null,"NWI-BB068B","Biofysica",3,"Yes"]
[null,"NWI-BB069B","Plantenfysiologie",6,"Yes"]
[null,"NWI-BB070B","Biologie van Micro-organismen ",3,"Yes"]
[null,"NWI-BB071B","Mens en Milieu ",3,"Yes"]
[null,"NWI-BB072C","Bacheloressay",6,"Yes"]
[null,"NWI-BB076B","Academische Vaardigheden ",3,"Yes"]
[null,"NWI-FCEM02B","Schrijfvaardigheid",3,"Yes"]
[null,"NWI-FFIL100","Inleiding in de filosofie en ethiek",3,"Yes"]
[null,null,"Total:",{"$f":"SUMIFS(D117:D127,H117:H127,\"\",E117:E127,\"Yes\")+SUM(H117:H127)","v":42}]
[]
[null,null,"Minor Space (Not mandatory, Max 30 EC)"]
[null,"In case you are egligible for two minors, please select the minor here which you want to have mentioned on your degree."]
[null,"Please provide the name of the minor as well as the cohort of the prospectus it is found in. Should you have selected the wrong minor by mistake, please regenerate the whole form."]
[null,"Do NOT forget to generate the minor, even if you did the medical biology minor. Your request will be REJECTED if you provide a minor name without the courses here."]
[null,"Do NOT select more than 30 EC of courses within your minor. This is not allowed and your programme proposal will be REJECTED"]
[null,"Minor:","Please select your minor here"]
[null,"Prospectus Year:","Select your prospectus",null,null,null,"Adjustments to the minor"]
["#hieronderbegintdeminormeteenhashtag","Code","Course Name","EC","Choose (Y/N)","Course Code","Course Name","EC"]
[]
[]
["#hierbovenbegintdeminormeteenhashtag",null,"Total:",{"$f":"SUMIFS(D137:D139,G137:G139,\"\",E137:E139,\"Yes\")+SUM(H137:H139)","v":0}]
[]
[null,"#pagebreakinhetwit"]
[null,null,"Differentiation Courses"]
[null,"Code","Course Name","EC","Taken? (Y/N)"]
[null,{"$f":"VLOOKUP(C145,nocatdiff_courses_list,2,0)","v":""},"Please select your differentation course",{"$f":"VLOOKUP(C145,nocatdiff_courses_list,3,0)","v":""}]
[null,"","",""]
[null,"","",""]
[null,"","",""]
[null,"","",""]
[null,"","",""]
[null,"","",""]
[null,"","",""]
[null,"","",""]
[null,"","",""]
[null,"","",""]
[null,"","",""]
[null,"","",""]
[null,"","",""]
[null,"","",""]
[null,"","",""]
[null,null,"Total:",{"$f":"SUM(D145:D160)","v":0}]
[]
[null,null,"Free Elective(s)"]
[]
[]
[null,null,"Total:",{"$f":"SUM(D164:D165)","v":0}]
[]
[]
[null,null,"Bachelor's Internship (NWI-BB-STAGE) (12 EC)*"]
[null,"If extended, please edit the amount of EC here:",null,12]
[null,"Title:"]
[null,"First supervisor:"]
[null,"Department:","Select the department"]
[null,"Second supervisor:","Portfolio Supervisor"]
[null,"Department:","Leave this blank if not yet known"]
[null,null,"sum:",{"$f":"SUM(D170)","v":12}]
[]
[]
[null,null,"Total EC:",{"$f":"SUM(D176,D166,D161,D140,D128)","v":54}]
[]
[null,"Please make sure that the above programme is 120 EC. Any extra courses may be filled in below. These courses do not count towards graduating with honours. "]
[null,"You may ask for exemption from this rule at the Examining Board."]
[null,"Extracurricular courses (above 120 EC)"]
[null,"Code","Course Name","EC"]
[]
[]
[]
[]
[]
[]
[]
[]
[]
[]
[null,null,"Totaal:",{"$f":"SUM(D185:D194)","v":0}]
[]
[null,"Total EC including extracurricular courses",null,{"$f":"SUM(D195,D179)","v":54}]
[]
[]
[null,"Remarks about your programme:"]
[]
[]
[]
[]
[]
["#scheidingswoordmeteenhashtag"]
["2013"]
[null,"Request form for approval of your Bachelor's Programme: Biology Cohort 2013"]
[null,"Once you wish to get approval, mail this form to fnwi.examcies@science.ru.nl"]
[]
[null,"Name:"]
[null,"Student number: "]
[null,"E-mail:"]
[null,"Phone number:"]
[null,"Cohort:","2013"]
[]
[null,null,"Compulsory Courses (42 EC)",null,null,null,"Adjustments to these Courses"]
[null,"Course Code","Course Name","EC","Choose","Course Code","Course Name","EC"]
[null,"NWI-BB005B","Dierfysiologie",6,"Yes"]
[null,"NWI-BB068B","Biofysica",3,"Yes"]
[null,"NWI-BB069B","Plantenfysiologie",6,"Yes"]
[null,"NWI-BB070B","Biologie van Micro-organismen",3,"Yes"]
[null,"NWI-BB071B","Mens en Mileu",3,"Yes"]
[null,"NWI-BB072C","Essay",6,"Yes"]
[null,"NWI-FCEM02B","Schrijfvaardigheid",3,"Yes"]
[null,"NWI-BB076B","Portfolio",3,"Yes"]
[null,"NWI-BB011B","Biologie en samenleving",3,"Yes"]
[null,"NWI-BB028B","History of Biology",3,"Yes"]
[null,"NWI-FFIL100","Inleiding in de filosofie en Ethiek",3,"Yes"]
[null,null,"Total:",{"$f":"SUMIFS(D219:D229,H219:H229,\"\",E219:E229,\"Yes\")+SUM(H219:H229)","v":42}]
[]
[null,null,"Minor Space (Not mandatory, Max 30 EC)"]
[null,"In case you are egligible for two minors, please select the minor here which you want to have mentioned on your degree."]
[null,"Please provide the name of the minor as well as the cohort of the prospectus it is found in. Should you have selected the wrong minor by mistake, please regenerate the whole form."]
[null,"Do NOT forget to generate the minor, even if you did the medical biology minor. Your request will be REJECTED if you provide a minor name without the courses here."]
[null,"Do NOT select more than 30 EC of courses within your minor. This is not allowed and your programme proposal will be REJECTED"]
[null,"Minor:","Please select your minor here"]
[null,"Prospectus Year:","Select your prospectus",null,null,null,"Adjustments to the minor"]
["#hieronderbegintdeminormeteenhashtag","Code","Course Name","EC","Choose (Y/N)","Course Code","Course Name","EC"]
[]
[]
["#hierbovenbegintdeminormeteenhashtag",null,"Total:",{"$f":"SUMIFS(D239:D241,G239:G241,\"\",E239:E241,\"Yes\")+SUM(H239:H241)","v":0}]
[]
[null,"#pagebreakinhetwit"]
[null,null,"Differentiation Courses"]
[null,"Code","Course Name","EC","Taken? (Y/N)"]
[null,{"$f":"VLOOKUP(C247,nocatdiff_courses_list,2,0)","v":""},"Please select your differentation course",{"$f":"VLOOKUP(C247,nocatdiff_courses_list,3,0)","v":""}]
[null,"","",""]
[null,"","",""]
[null,"","",""]
[null,"","",""]
[null,"","",""]
[null,"","",""]
[null,"","",""]
[null,"","",""]
[null,"","",""]
[null,"","",""]
[null,"","",""]
[null,"","",""]
[null,"","",""]
[null,"","",""]
[null,"","",""]
[null,null,"Total:",{"$f":"SUM(D247:D262)","v":0}]
[]
[null,null,"Free Elective(s)"]
[]
[]
[null,null,"Total:",{"$f":"SUM(D266:D267)","v":0}]
[]
[]
[null,null,"Bachelor's Internship (NWI-BB-STAGE) (12 EC)*"]
[null,"If extended, please edit the amount of EC here:",null,12]
[null,"Title:"]
[null,"First supervisor:"]
[null,"Department:","Select the department"]
[null,"Second supervisor:","Portfolio Supervisor"]
[null,"Department:","Leave this blank if not yet known"]
[null,null,"sum:",{"$f":"SUM(D272)","v":12}]
[]
[]
[null,null,"Total EC:",{"$f":"SUM(D278,D268,D263,D242,D230)","v":54}]
[]
[null,"Please make sure that the above programme is 120 EC. Any extra courses may be filled in below. These courses do not count towards graduating with honours. "]
[null,"You may ask for exemption from this rule at the Examining Board."]
[null,"Extracurricular courses (above 120 EC)"]
[null,"Code","Course Name","EC"]
[]
[]
[]
[]
[]
[]
[]
[]
[]
[]
[null,null,"Totaal:",{"$f":"SUM(D287:D296)","v":0}]
[]
[null,"Total EC including extracurricular courses",null,{"$f":"SUM(D297,D281)","v":54}]
[]
[]
[null,"Remarks about your programme:"]
[]
[]
[]
[]
[]
["#scheidingswoordmeteenhashtag"]
[2014]
[null,"Request form for approval of your Bachelor's Programme: Biology Cohort 2014"]
[null,"Once you wish to get approval, mail this form to fnwi.examcies@science.ru.nl"]
[]
[null,"Name:"]
[null,"Student number: "]
[null,"E-mail:"]
[null,"Phone number:"]
[null,"Cohort:","2014"]
[]
[null,null,"Compulsory Courses (42 EC)",null,null,null,"Adjustments to these Courses"]
[null,"Course Code","Course Name","EC","Choose","Course Code","Course Name","EC"]
[null,"NWI-BB005B","Dierfysiologie",6,"Yes"]
[null,"NWI-BB068B","Biofysica",3,"Yes"]
[null,"NWI-BB069B","Plantenfysiologie",6,"Yes"]
[null,"NWI-BB070B","Biologie van Micro-organismen",3,"Yes"]
[null,"NWI-BB071B","Mens en Mileu",3,"Yes"]
[null,"NWI-BB072C","Bachelor Essay",6,"Yes"]
[null,"NWI-FCEM02B","Schrijfcursus",3,"Yes"]
[null,"NWI-BB076B","Portfolio",3,"Yes"]
[null,"NWI-BB011B","Biologie en samenleving",3,"Yes"]
[null,"NWI-BB028B","History of Biology",3,"Yes"]
[null,"NWI-FFIL100","Inleiding in de filosofie en Ethiek",3,"Yes"]
[null,null,"Total:",{"$f":"SUMIFS(D321:D331,H321:H331,\"\",E321:E331,\"Yes\")+SUM(H321:H331)","v":42}]
[]
[null,null,"Minor Space (Not mandatory, Max 30 EC)"]
[null,"In case you are egligible for two minors, please select the minor here which you want to have mentioned on your degree."]
[null,"Please provide the name of the minor as well as the cohort of the prospectus it is found in. Should you have selected the wrong minor by mistake, please regenerate the whole form."]
[null,"Do NOT forget to generate the minor, even if you did the medical biology minor. Your request will be REJECTED if you provide a minor name without the courses here."]
[null,"Do NOT select more than 30 EC of courses within your minor. This is not allowed and your programme proposal will be REJECTED"]
[null,"Minor:","Please select your minor here"]
[null,"Prospectus Year:","Select your prospectus",null,null,null,"Adjustments to the minor"]
["#hieronderbegintdeminormeteenhashtag","Code","Course Name","EC","Choose (Y/N)","Course Code","Course Name","EC"]
[]
[]
["#hierbovenbegintdeminormeteenhashtag",null,"Total:",{"$f":"SUMIFS(D341:D343,G341:G343,\"\",E341:E343,\"Yes\")+SUM(H341:H343)","v":0}]
[]
[null,"#pagebreakinhetwit"]
[null,null,"Differentiation Courses"]
[null,"Code","Course Name","EC","Taken? (Y/N)"]
[null,{"$f":"VLOOKUP(C349,nocatdiff_courses_list,2,0)","v":""},"Please select your differentation course",{"$f":"VLOOKUP(C349,nocatdiff_courses_list,3,0)","v":""}]
[null,"","",""]
[null,"","",""]
[null,"","",""]
[null,"","",""]
[null,"","",""]
[null,"","",""]
[null,"","",""]
[null,"","",""]
[null,"","",""]
[null,"","",""]
[null,"","",""]
[null,"","",""]
[null,"","",""]
[null,"","",""]
[null,"","",""]
[null,null,"Total:",{"$f":"SUM(D349:D364)","v":0}]
[]
[null,null,"Free Elective(s)"]
[]
[]
[null,null,"Total:",{"$f":"SUM(D368:D369)","v":0}]
[]
[]
[null,null,"Bachelor's Internship (NWI-BB-STAGE) (12 EC)*"]
[null,"If extended, please edit the amount of EC here:",null,12]
[null,"Title:"]
[null,"First supervisor:"]
[null,"Department:","Select the department"]
[null,"Second supervisor:","Portfolio Supervisor"]
[null,"Department:","Leave this blank if not yet known"]
[null,null,"sum:",{"$f":"SUM(D374)","v":12}]
[]
[]
[null,null,"Total EC:",{"$f":"SUM(D380,D370,D365,D344,D332)","v":54}]
[]
[null,"Please make sure that the above programme is 120 EC. Any extra courses may be filled in below. These courses do not count towards graduating with honours. "]
[null,"You may ask for exemption from this rule at the Examining Board."]
[null,"Extracurricular courses (above 120 EC)"]
[null,"Code","Course Name","EC"]
[]
[]
[]
[]
[]
[]
[]
[]
[]
[]
[null,null,"Totaal:",{"$f":"SUM(D389:D398)","v":0}]
[]
[null,"Total EC including extracurricular courses",null,{"$f":"SUM(D399,D383)","v":54}]
[]
[]
[null,"Remarks about your programme:"]
[]
[]
[]
[]
[]
["#scheidingswoordmeteenhashtag"]
[2015]
[null,"Request form for approval of your Bachelor's Programme: Biology Cohort 2015"]
[null,"Once you wish to get approval, mail this form to fnwi.examcies@science.ru.nl"]
[]
[null,"Name:"]
[null,"Student number: "]
[null,"E-mail:"]
[null,"Phone number:"]
[null,"Cohort:","2015"]
[]
[null,null,"Compulsory Courses (39 EC)",null,null,null,"Adjustments to these Courses"]
[null,"Course Code","Course Name","EC","Choose","Course Code","Course Name","EC"]
[null,"NWI-BB005B","Dierfysiologie",6,"Yes"]
[null,"NWI-BB068B","Biofysica",3,"Yes"]
[null,"NWI-BB069B","Plantenfysiologie",6,"Yes"]
[null,"NWI-BB070B","Biologie van Micro-organismen",3,"Yes"]
[null,"NWI-BB071B","Mens en Mileu",3,"Yes"]
[null,"NWI-BB072C","Bachelor Essay",6,"Yes"]
[null,"NWI-FCEM02B","Schrijfvaardigheid",3,"Yes"]
[null,"NWI-BB076B","Portfolio",3,"Yes"]
[null,"NWI-BB028B","History of Biology",3,"Yes"]
[null,"NWI-FFIL100","Inleiding in de filosofie en Ethiek",3,"Yes"]
[null,null,"Total:",{"$f":"SUMIFS(D423:D432,H423:H432,\"\",E423:E432,\"Yes\")+SUM(H423:H432)","v":39}]
[]
[null,null,"Minor Space (Not mandatory, Max 30 EC)"]
[null,"In case you are egligible for two minors, please select the minor here which you want to have mentioned on your degree."]
[null,"Please provide the name of the minor as well as the cohort of the prospectus it is found in. Should you have selected the wrong minor by mistake, please regenerate the whole form."]
[null,"Do NOT forget to generate the minor, even if you did the medical biology minor. Your request will be REJECTED if you provide a minor name without the courses here."]
[null,"Do NOT select more than 30 EC of courses within your minor. This is not allowed and your programme proposal will be REJECTED"]
[null,"Minor:","Please select your minor here"]
[null,"Prospectus Year:","Select your prospectus",null,null,null,"Adjustments to the minor"]
["#hieronderbegintdeminormeteenhashtag","Code","Course Name","EC","Choose (Y/N)","Course Code","Course Name","EC"]
[]
[]
["#hierbovenbegintdeminormeteenhashtag",null,"Total:",{"$f":"SUMIFS(D442:D444,G442:G444,\"\",E442:E444,\"Yes\")+SUM(H442:H444)","v":0}]
[]
[null,"#pagebreakinhetwit"]
[null,"There are two categories of courses according to the Education and Exam Regulations of Biology (EER)"]
[null,"You will find the courses split according to those categories in the selection box . Please make sure that you have passed enough courses within category BB1"]
[]
[null,null,"Differentiation Courses"]
[null,"Code","Course Name","EC","Taken? (Y/N)"]
[null,{"$f":"VLOOKUP(C453,diff_courses_list,2,0)","v":""},"Please select your differentation course",{"$f":"VLOOKUP(C453,diff_courses_list,3,0)","v":""}]
[null,"","",""]
[null,"","",""]
[null,"","",""]
[null,"","",""]
[null,"","",""]
[null,"","",""]
[null,"","",""]
[null,"","",""]
[null,"","",""]
[null,"","",""]
[null,"","",""]
[null,"","",""]
[null,"","",""]
[null,"","",""]
[null,"","",""]
[null,null,"Total:",{"$f":"SUM(D453:D468)","v":0}]
[]
[null,null,"Free Elective(s)"]
[]
[]
[null,null,"Total:",{"$f":"SUM(D472:D473)","v":0}]
[]
[]
[null,null,"Bachelor's Internship (NWI-BB-STAGE) (12 EC)*"]
[null,"If extended, please edit the amount of EC here:",null,12]
[null,"Title:"]
[null,"First supervisor:"]
[null,"Department:","Select the department"]
[null,"Second supervisor:","Portfolio Supervisor"]
[null,"Department:","Leave this blank if not yet known"]
[null,null,"sum:",{"$f":"SUM(D478)","v":12}]
[]
[]
[null,null,"Total EC:",{"$f":"SUM(D484,D474,D469,D445,D433)","v":51}]
[]
[null,"Please make sure that the above programme is 120 EC. Any extra courses may be filled in below. These courses do not count towards graduating with honours. "]
[null,"You may ask for exemption from this rule at the Examining Board."]
[null,"Extracurricular courses (above 120 EC)"]
[null,"Code","Course Name","EC"]
[]
[]
[]
[]
[]
[]
[]
[]
[]
[]
[null,null,"Totaal:",{"$f":"SUM(D493:D502)","v":0}]
[]
[null,"Total EC including extracurricular courses",null,{"$f":"SUM(D503,D487)","v":51}]
[]
[]
[null,"Remarks about your programme:"]
[]
[]
[]
[]
[]
["#scheidingswoordmeteenhashtag"]
[2016]
[null,"Request form for approval of your Bachelor's Programme: Biology Cohort 2016"]
[null,"Once you wish to get approval, mail this form to fnwi.examcies@science.ru.nl"]
[]
[null,"Name:"]
[null,"Student number: "]
[null,"E-mail:"]
[null,"Phone number:"]
[null,"Cohort:","2016"]
[]
[null,null,"Compulsory Courses (39 EC)",null,null,null,"Adjustments to these Courses"]
[null,"Course Code","Course Name","EC","Choose","Course Code","Course Name","EC"]
[null,"NWI-BB005B","Dierfysiologie",6,"Yes"]
[null,"NWI-BB068B","Biofysica",3,"Yes"]
[null,"NWI-BB069B","Plantenfysiologie",6,"Yes"]
[null,"NWI-BB070B","Biologie van Micro-organismen",3,"Yes"]
[null,"NWI-BB071B","Mens en Mileu",3,"Yes"]
[null,"NWI-BB072C","Bachelor Essay",6,"Yes"]
[null,"NWI-FCEM02B","Schrijfvaardigheid",3,"Yes"]
[null,"NWI-BB076B","Portfolio",3,"Yes"]
[null,"NWI-BB028B","History of Biology",3,"Yes"]
[null,"NWI-FFIL100","Inleiding in de filosofie en Ethiek",3,"Yes"]
[null,null,"Total:",{"$f":"SUMIFS(D527:D536,H527:H536,\"\",E527:E536,\"Yes\")+SUM(H527:H536)","v":39}]
[]
[null,null,"Minor Space (Not mandatory, Max 30 EC)"]
[null,"In case you are egligible for two minors, please select the minor here which you want to have mentioned on your degree."]
[null,"Please provide the name of the minor as well as the cohort of the prospectus it is found in. Should you have selected the wrong minor by mistake, please regenerate the whole form."]
[null,"Do NOT forget to generate the minor, even if you did the medical biology minor. Your request will be REJECTED if you provide a minor name without the courses here."]
[null,"Do NOT select more than 30 EC of courses within your minor. This is not allowed and your programme proposal will be REJECTED"]
[null,"Minor:","Please select your minor here"]
[null,"Prospectus Year:","Select your prospectus",null,null,null,"Adjustments to the minor"]
["#hieronderbegintdeminormeteenhashtag","Code","Course Name","EC","Choose (Y/N)","Course Code","Course Name","EC"]
[]
[]
["#hierbovenbegintdeminormeteenhashtag",null,"Total:",{"$f":"SUMIFS(D546:D548,G546:G548,\"\",E546:E548,\"Yes\")+SUM(H546:H548)","v":0}]
[]
[null,"#pagebreakinhetwit"]
[null,"There are two categories of courses according to the Education and Exam Regulations of Biology (EER)"]
[null,"You will find the courses split according to those categories in the selection box . Please make sure that you have passed enough courses within category BB1"]
[]
[null,null,"Differentiation Courses"]
[null,"Code","Course Name","EC","Taken? (Y/N)"]
[null,{"$f":"VLOOKUP(C557,diff_courses_list,2,0)","v":""},"Please select your differentation course",{"$f":"VLOOKUP(C557,diff_courses_list,3,0)","v":""}]
[null,"","",""]
[null,"","",""]
[null,"","",""]
[null,"","",""]
[null,"","",""]
[null,"","",""]
[null,"","",""]
[null,"","",""]
[null,"","",""]
[null,"","",""]
[null,"","",""]
[null,"","",""]
[null,"","",""]
[null,"","",""]
[null,"","",""]
[null,null,"Total:",{"$f":"SUM(D557:D572)","v":0}]
[]
[null,null,"Free Elective(s) (Meant for optional courses not in the biology curriculum)"]
[]
[]
[null,null,"Total:",{"$f":"SUM(D576:D577)","v":0}]
[]
[]
[null,null,"Bachelor's Internship (NWI-BB-STAGE) (12 EC)*"]
[null,"If extended, please edit the amount of EC here:",null,12]
[null,"Title:"]
[null,"First supervisor:"]
[null,"Department:","Select the department"]
[null,"Second supervisor:","Portfolio Supervisor"]
[null,"Department:","Leave this blank if not yet known"]
[null,null,"sum:",{"$f":"SUM(D582)","v":12}]
[]
[]
[null,null,"Total EC:",{"$f":"SUM(D588,D578,D573,D549,D537)","v":51}]
[null,"Please make sure that the above programme is 120 EC. Any extra courses may be filled in below. These courses do not count towards graduating with honours. "]
[null,"You may ask for exemption from this rule at the Examining Board."]
[null,"Extracurricular courses (above 120 EC)"]
[null,"Code","Course Name","EC"]
[]
[]
[]
[]
[]
[]
[]
[]
[]
[]
[null,null,"Totaal:",{"$f":"SUM(D596:D605)","v":0}]
[]
[null,"Total EC including extracurricular courses",null,{"$f":"SUM(D606,D591)","v":51}]
[]
[]
[null,"Remarks about your programme:"]
[]
[]
[]
[]
[]
["#scheidingswoordmeteenhashtag"]
["2017"]
[null,"Request form for approval of your Bachelor's Programme: Biology Cohort 2017"]
[null,"Once you wish to get approval, mail this form to fnwi.examcies@science.ru.nl"]
[]
[null,"Name:"]
[null,"Student number: "]
[null,"E-mail:"]
[null,"Phone number:"]
[null,"Cohort:","2017"]
[]
[null,null,"Compulsory Courses (39 EC)",null,null,null,"Adjustments to these Courses"]
[null,"Course Code","Course Name","EC","Choose","Course Code","Course Name","EC"]
[null,"NWI-BB005B","Dierfysiologie",6,"Yes"]
[null,"NWI-BB028B","History of biology",3,"Yes"]
[null,"NWI-BB068B","Biofysica",3,"Yes"]
[null,"NWI-BB069B","Plantenfysiologie",6,"Yes"]
[null,"NWI-BB070B","Biologie van Micro-organismen",3,"Yes"]
[null,"NWI-BB071B","Mens en Mileu",3,"Yes"]
[null,"NWI-BB072C","Bachelor Essay",6,"Yes"]
[null,"NWI-BB076B","Bachelorportfolio Biowetenschappen",3,"Yes"]
[null,"NWI-FCEM02B","Schrijfvaardigheid",3,"Yes"]
[null,"NWI-FFIL100","Inleiding in de filosofie en de ethiek",3,"Yes"]
[null,null,"Total:",{"$f":"SUMIFS(D630:D639,H630:H639,\"\",E630:E639,\"Yes\")+SUM(H630:H639)","v":39}]
[]
[null,null,"Minor Space (Not mandatory, Max 30 EC)"]
[null,"In case you are egligible for two minors, please select the minor here which you want to have mentioned on your degree."]
[null,"Please provide the name of the minor as well as the cohort of the prospectus it is found in. Should you have selected the wrong minor by mistake, please regenerate the whole form."]
[null,"Do NOT forget to generate the minor, even if you did the medical biology minor. Your request will be REJECTED if you provide a minor name without the courses here."]
[null,"Do NOT select more than 30 EC of courses within your minor. This is not allowed and your programme proposal will be REJECTED"]
[null,"Minor:","Please select your minor here"]
[null,"Prospectus Year:","Select your prospectus",null,null,null,"Adjustments to the minor"]
["#hieronderbegintdeminormeteenhashtag","Code","Course Name","EC","Choose (Y/N)","Course Code","Course Name","EC"]
[]
[]
["#hierbovenbegintdeminormeteenhashtag",null,"Total:",{"$f":"SUMIFS(D649:D651,G649:G651,\"\",E649:E651,\"Yes\")+SUM(H649:H651)","v":0}]
[]
[null,"#pagebreakinhetwit"]
[null,"There are two categories of courses according to the Education and Exam Regulations of Biology (EER)"]
[null,"You will find the courses split according to those categories in the selection box . Please make sure that you have passed enough courses within category BB2"]
[]
[null,null,{"$f":"\"Differentiation Courses (\"&63-D652&\" EC)\"","v":"Differentiation Courses (63 EC)"}]
[null,"Code","Course Name","EC","Taken? (Y/N)"]
[null,{"$f":"VLOOKUP(C660,diff2017_tabel,2,0)","v":""},"",{"$f":"VLOOKUP(C660,diff2017_tabel,3,0)","v":""}]
[null,"","",""]
[null,"","",""]
[null,"","",""]
[null,"","",""]
[null,"","",""]
[null,"","",""]
[null,"","",""]
[null,"","",""]
[null,"","",""]
[null,"","",""]
[null,"","",""]
[null,"","",""]
[null,"","",""]
[null,"","",""]
[null,"","",""]
[null,null,"Total:",{"$f":"SUM(D660:D675)","v":0}]
[]
[null,null,"Free Elective(s) (Meant for optional courses not in the biology curriculum)"]
[]
[]
[null,null,"Total:",{"$f":"SUM(D679:D680)","v":0}]
[]
[]
[null,null,"Bachelor's Internship (NWI-BB-STAGE) (12 EC)*"]
[null,"If extended, please edit the amount of EC here:",null,12]
[null,"Title:"]
[null,"First supervisor:"]
[null,"Department:","Select the department"]
[null,"Second supervisor:","Portfolio Supervisor"]
[null,"Department:","Leave this blank if not yet known"]
[null,null,"sum:",{"$f":"SUM(D685)","v":12}]
[]
[]
[null,null,"Total EC:",{"$f":"SUM(D691,D681,D676,D652,D640)","v":51}]
[null,"Please make sure that the above programme is 120 EC. Any extra courses may be filled in below. These courses do not count towards graduating with honours. "]
[null,"You may ask for exemption from this rule at the Examining Board."]
[null,"Extracurricular courses (above 120 EC)"]
[null,"Code","Course Name","EC"]
[]
[]
[]
[]
[]
[]
[]
[]
[]
[]
[null,null,"Totaal:",{"$f":"SUM(D699:D708)","v":0}]
[]
[null,"Total EC including extracurricular courses",null,{"$f":"SUM(D709,D694)","v":51}]
[]
[]
[null,"Remarks about your programme:"]
[]
[]
[]
[]
[]
["#scheidingswoordmeteenhashtag"]
["2018"]
[null,"Request form for approval of your Bachelor's Programme: Biology Cohort 2018"]
[null,"Once you wish to get approval, mail this form to fnwi.examcies@science.ru.nl"]
[]
[null,"Name:"]
[null,"Student number: "]
[null,"E-mail:"]
[null,"Phone number:"]
[null,"Cohort:","2018"]
[]
[null,null,"Compulsory Courses (39 EC)",null,null,null,"Adjustments to these Courses"]
[null,"Course Code","Course Name","EC","Choose","Course Code","Course Name","EC"]
[null,"NWI-BB005B","Dierfysiologie",6,"Yes"]
[null,"NWI-BB028B","History of biology",3,"Yes"]
[null,"NWI-BB068B","Biofysica",3,"Yes"]
[null,"NWI-BB069B","Plantenfysiologie",6,"Yes"]
[null,"NWI-BB070B","Biologie van Micro-organismen",3,"Yes"]
[null,"NWI-BB071B","Mens en Mileu",3,"Yes"]
[null,"NWI-BB072C","Bachelor Essay",6,"Yes"]
[null,"NWI-BB076B","Bachelorportfolio Biowetenschappen",3,"Yes"]
[null,"NWI-FCEM02B","Schrijfvaardigheid",3,"Yes"]
[null,"NWI-FFIL100","Inleiding in de filosofie en de ethiek",3,"Yes"]
[null,null,"Total:",{"$f":"SUMIFS(D733:D742,H733:H742,\"\",E733:E742,\"Yes\")+SUM(H733:H742)","v":39}]
[]
[null,null,"Minor Space (Not mandatory, Max 30 EC)"]
[null,"In case you are egligible for two minors, please select the minor here which you want to have mentioned on your degree."]
[null,"Please provide the name of the minor as well as the cohort of the prospectus it is found in. Should you have selected the wrong minor by mistake, please regenerate the whole form."]
[null,"Do NOT forget to generate the minor, even if you did the medical biology minor. Your request will be REJECTED if you provide a minor name without the courses here."]
[null,"Do NOT select more than 30 EC of courses within your minor. This is not allowed and your programme proposal will be REJECTED"]
[null,"Minor:","Please select your minor here"]
[null,"Prospectus Year:","Select your prospectus",null,null,null,"Adjustments to the minor"]
["#hieronderbegintdeminormeteenhashtag","Code","Course Name","EC","Choose (Y/N)","Course Code","Course Name","EC"]
[]
[]
["#hierbovenbegintdeminormeteenhashtag",null,"Total:",{"$f":"SUMIFS(D752:D754,G752:G754,\"\",E752:E754,\"Yes\")+SUM(H752:H754)","v":0}]
[]
[null,"#pagebreakinhetwit"]
[null,"There are two categories of courses according to the Education and Exam Regulations of Biology (EER)"]
[null,"You will find the courses split according to those categories in the selection box . Please make sure that you have passed enough courses within category BB2"]
[]
[null,null,{"$f":"\"Differentiation Courses (\"&63-D755&\" EC)\"","v":"Differentiation Courses (63 EC)"}]
[null,"Code","Course Name","EC","Taken? (Y/N)"]
[null,{"$f":"VLOOKUP(C763,diff2017_tabel,2,0)","v":""},"",{"$f":"VLOOKUP(C763,diff2017_tabel,3,0)","v":""}]
[null,"","",""]
[null,"","",""]
[null,"","",""]
[null,"","",""]
[null,"","",""]
[null,"","",""]
[null,"","",""]
[null,"","",""]
[null,"","",""]
[null,"","",""]
[null,"","",""]
[null,"","",""]
[null,"","",""]
[null,"","",""]
[null,"","",""]
[null,null,"Total:",{"$f":"SUM(D763:D778)","v":0}]
[]
[null,null,"Free Elective(s) (Meant for optional courses not in the biology curriculum)"]
[]
[]
[null,null,"Total:",{"$f":"SUM(D782:D783)","v":0}]
[]
[]
[null,null,"Bachelor's Internship (NWI-BB-STAGE) (12 EC)"]
[null,"Title:"]
[null,"First supervisor:"]
[null,"Department:","Select the department"]
[null,"Second supervisor:","Portfolio Supervisor"]
[null,"Department:","Leave this blank if not yet known"]
[null,null,"sum:",{"$f":"SUM(#REF!)","v":{"$error":"#REF!"}}]
[]
[]
[null,null,"Total EC:",{"$f":"SUM(D793,D784,D779,D755,D743)","v":{"$error":"#REF!"}}]
[null,"Please make sure that the above programme is 120 EC. Any extra courses may be filled in below. These courses do not count towards graduating with honours. "]
[null,"You may ask for exemption from this rule at the Examining Board."]
[null,"Extracurricular courses (above 120 EC)"]
[null,"Code","Course Name","EC"]
[]
[]
[]
[]
[]
[]
[]
[]
[]
[]
[null,null,"Totaal:",{"$f":"SUM(D801:D810)","v":0}]
[]
[null,"Total EC including extracurricular courses",null,{"$f":"SUM(D811,D796)","v":{"$error":"#REF!"}}]
[]
[]
[null,"Remarks about your programme:"]
[]
[]
[]
[]
[]
["#scheidingswoordmeteenhashtag"]

{"sheet":"Selections","index":3,"n_rows":329,"n_cols":18,"rows_kept":329,"cut":false,"hidden":true,"merged":[]}
[null,null,null,null,null,null,null,null,null,null,null,"2015 and ","Please select your differentation course","","",null,null,"Select the department"]
[null,null,null,null,null,null,null,null,null,null,null,2016,"","",""]
[null,null,null,null,null,"Yes","Cohort","Minor","Prospectus",null,null,null,"                          Category BB1","","",null,null,"External department"]
[null,null,null,null,null,"No","Please select your cohort","Please select your minor here","Select your prospectus",null,null,null,"(BB1) Adaptatiefysiologie","NWI-BB020B",6,null,null,"IWWR-001 Animal Ecology and Ecophysiology"]
[null,null,null,null,null,null,2011,"Bioorganic Chemistry",2014,null,null,null,"(BB1) Advanced Population and Evolution Biology","NWI-BB087",6,null,null,"IWWR-003 Aquatic Ecology and Environmental Biology"]
[null,null,null,null,null,null,2012,"Computing Science (Bio, Chem and MLS)",2015,null,null,null,"(BB1) Applied and Environmental Microbiology","NWI-BB027B",6,null,null,"IWWR-004 Ecological Microbiology"]
[null,null,null,null,null,null,2013,"Education",2016,null,null,null,"(BB1) Applied Bioinformatics","NWI-BB051B",6,null,null,"IWWR-005 Environmental Science"]
[null,null,null,null,null,null,2014,"Information Sciences",2017,null,null,null,"(BB1) Applied Ecology","NWI-BB036B",6,null,null,"IWWR-006 Experimental Plant Ecology"]
[null,null,null,null,null,null,2015,"Mathematics (Bio)",2018,null,null,null,"(BB1) Biochemistry and Molecular Biology II","NWI-BB017C",6,null,null,"IWWR-007 Organismal Animal Physiology"]
[null,null,null,null,null,null,2016,"Medical Biology",null,null,null,null,"(BB1) Biologie en duurzame ontwikkeling","NWI-BB079B",6,null,null,"IWWR-008 Plant Science"]
[null,null,null,null,null,null,2017,"Medicine",null,null,null,null,"(BB1) Biologie en Samenleving","NWI-BB011B",3,null,null,"RIMLS-001 Bioinformatics CMBI"]
[null,null,null,null,null,null,2018,"Physical Organic Chemistry",null,null,null,null,"(BB1) Biotechnology of Plants","NWI-BB032B",6,null,null,"RIMLS-002 Biomolecular Chemistry"]
[null,null,null,null,null,null,null,"Sustainable Chemistry",null,null,null,null,"(BB1) Celbiologie van Dieren","NWI-BB023B",6,null,null,"RIMLS-003 Cell Biology RUMC"]
[null,null,null,null,null,null,null,"Global Challenges, Science and Entrepreneurship",null,null,null,null,"(BB1) Cognitive Neuroimaging","NWI-BB081B",6,null,null,"RIMLS-004 Human genetics"]
[null,null,null,null,null,null,null,null,null,null,null,null,"(BB1) Conservation Genetics","NWI-BB050C",6,null,null,"RIMLS-005 Mitochondrial disorders"]
[null,null,null,null,null,null,null,"Minor from another faculty",null,null,null,null,"(BB1) Dierecologie","NWI-BB060B",6,null,null,"RIMLS-006 Molecular Animal Physiology"]
[null,null,null,null,null,null,null,"Free Minor",null,null,null,null,"(BB1) Ecofysiologie","NWI-BB018B",6,null,null,"RIMLS-007 Molecular Biology"]
[null,null,null,null,null,null,null,null,null,null,null,null,"(BB1) Ecological Microbiology","NWI-BB027B",6,null,null,"RIMLS-008 Molecular Developmental Biology"]
[null,null,null,null,null,null,null,null,null,null,null,null,"(BB1) Ecological Theory and Data Analysis","NWI-BB083B",6,null,null,"RIMLS-009 Pharmacology and Toxicology"]
[null,null,null,null,null,null,null,null,null,null,null,null,"(BB1) Endocrinologie","NWI-BB048B",6,null,null,"RIMLS-010 Physiology"]
[null,null,null,null,null,null,null,null,null,null,null,null,"(BB1) Environmental Chemistry and Toxicology","NWI-BB082B",3,null,null,"RIMLS-011 Tumorimmunology"]
[null,null,null,null,null,null,null,null,null,null,null,null,"(BB1) Evolutiebiologie","NWI-BB040B",6,null,null,"RIHS-011 Biochemistry"]
[null,"Internship departments",null,null,null,null,null,null,null,null,null,null,"(BB1) Functional Genomics","NWI-BB064B",6,null,null,"RIHS-012 Biomolecular Chemistry"]
[null,null,null,null,null,null,null,null,null,null,null,null,"(BB1) Fysiologie van micro-organismen","NWI-BB024B",6,null,null,"RIHS-013 Dermatology"]
[null,null,null,null,null,null,null,null,null,null,null,null,"(BB1) Genomics Analysis of Plants","NWI-BB043B",6,null,null,"RIHS-014 Experimental Urology"]
[null,null,null,null,null,null,null,null,null,null,null,null,"(BB1) Genomics for Health and Environment","NWI-BB086",12,null,null,"RIHS-015 Glomerular diseases and Transplantation Immunology"]
[null,null,null,null,null,null,null,"Please select your minor here",null,null,null,null,"(BB1) Geographic Information Systems (GIS)","NWI-MB021B",6,null,null,"RIHS-016 Gynaecology"]
[null,null,null,null,null,null,null,"Bioorganic Chemistry",null,null,null,null,"(BB1) Hersenen en Gedrag","NWI-BB085B",6,null,null,"RIHS-017 Hematology"]
[null,null,null,null,null,null,null,"Computing Science (Bio, Chem and MLS)",null,null,null,null,"(BB1) Human Embryology and Developmental Biology","NWI-BB047C",6,null,null,"RIHS-018 Human Genetics"]
[null,null,null,null,null,null,null,"Education",null,null,null,null,"(BB1) Human and Ecological Risk Assessment","NWI-MB024C",6,null,null,"RIHS-019 Laboratory of Genetic, Endocrine and Metabolic Disorders"]
[null,null,null,null,null,null,null,"Information Sciences",null,null,null,null,"(BB1) Humane en Ecologische Risicobeoordeling (HERA)","NWI-MB024C",6,null,null,"RIHS-020 Medical Microbiology/Parasitology"]
[null,null,null,null,null,null,null,"Mathematics (Bio)",null,null,null,null,"(BB1) Immunology","NWI-BB019B",6,null,null,"RIHS-021 Medical Microbiology/Virology"]
[null,null,null,null,null,null,null,"Medical Biology",null,null,null,null,"(BB1) Inleiding in de aandoeningen van circulatie en respiratie en hyperlipidemie","NWI-BB075B3",6,null,null,"RIHS-022 Mitochondrial Disorders"]
[null,null,null,null,null,null,null,"Medicine",null,null,null,null,"(BB1) Inleiding in de aandoeningen van de tractus digestivus","NWI-BB075B4",6,null,null,"RIHS-023 Molecular Pharmacology & Toxicology"]
[null,null,null,null,null,null,null,"Sustainable Chemistry",null,null,null,null,"(BB1) Inleiding in de Nefrologie & Urologie","NWI-BB075B5",6,null,null,"RIHS-024 Nephrology Research Laboratory "]
[null,null,null,null,null,null,null,"Global Challenges, Science and Entrepreneurship",null,null,null,null,"(BB1) Inleiding in de oncologie, immunologie, hematologie en infectieziekten","NWI-BB075B2",6,null,null,"RIHS-025 Orthodontics and Craniofacial Biology"]
[null,null,null,null,null,null,null,"Other",null,null,null,null,"(BB1) Introductie in de Geneeskunde (minor)","NWI-BB075B",6,null,null,"RIHS-026 Pathology"]
[null,null,null,null,null,null,null,null,null,null,null,null,"(BB1) Medical biotechnology","NWI-MOL104",6,null,null,"RIHS-027 Pediatric infectious diseases"]
[null,null,null,null,null,null,null,null,null,null,null,null,"(BB1) Medische pathologie","NWI-BB025B",6,null,null,"RIHS-028 Pediatric Oncology"]
[null,null,null,null,null,null,null,null,null,null,null,null,"(BB1) Methoden van geneeskunde","NWI-BB075B1",6,null,null,"RIHS-029 Rheumatology"]
[null,null,null,null,null,null,null,null,null,null,null,null,"(BB1) Molecular Principles of Development","NWI-BB084B",6,null,null,"RIHS-030 Urology "]
[null,null,null,null,null,null,null,null,null,null,null,null,"(BB1) Neurobiofysica","NWI-BB021B",6,null,null,"DI-001 Biological Psychology"]
[null,null,null,null,null,null,null,null,null,null,null,null,"(BB1) Neurobiophysics","NWI-BB021B",6,null,null,"DI-002 Biophysics"]
[null,null,null,null,null,null,null,null,null,null,null,null,"(BB1) Neurobiology","NWI-BB034B",6,null,null,"DI-003 Cognitive Neuroscience"]
[null,null,null,null,null,null,null,null,null,null,null,null,"(BB1) Neurodevelopment","NWI-BB039C",6,null,null,"DI-004 Cognitive Psychology"]
[null,null,null,null,null,null,null,null,null,null,null,null,"(BB1) Neurofysiologie van cognitie en gedrag","NWI-BB080B",6,null,null,"DI-005 DCCN"]
[null,null,null,null,null,null,null,null,null,null,null,null,"(BB1) Neurophysiology of Cognition and Behaviour","NWI-BB080B",6,null,null,"DI-006 Language and Genetics"]
[null,null,null,null,null,null,null,null,null,null,null,null,"(BB1) Neuroscience: from Basics to Clinic","NWI-BB063B",6,null,null,"DI-007 Molecular Animal Physiology"]
[null,null,null,null,null,null,null,null,null,null,null,null,"(BB1) Pathofysiologie van de nier","NWI-BB065B",6,null,null,"DI-008 Molecular Neurogenetics"]
[null,null,null,null,null,null,null,null,null,null,null,null,"(BB1) Physiology of Microorganisms","NWI-BB024B",6,null,null,"DI-009 Neuro-oncology"]
[null,null,null,null,null,null,null,null,null,null,null,null,"(BB1) Plant Genome Analysis","NWI-BB043B",6,null,null,"DI-010 Neurology"]
[null,null,null,null,null,null,null,null,null,null,null,null,"(BB1) Statistiek II","NWI-BB077B",3,null,null,"DI-011 Neurophysiology"]
[null,null,null,null,null,null,null,null,null,null,null,null,"(BB1) Systeemecologie","NWI-BB022B",6,null,null,"IMM-001 Biomoleculaire Chemie"]
[null,null,null,null,null,null,null,null,null,null,null,null,"(BB1) Toegepaste Bioinformatica","NWI-BB051B",6,null,null,"IMM-002 Moleculaire Laserfysica TGRG "]
[null,null,null,null,null,null,null,null,null,null,null,null,"(BB1) Toegepaste Ecologie","NWI-BB036B",6,null,null,"FSW-001 Biologische Psychologie"]
[null,null,null,null,null,null,null,null,null,null,null,null,"(BB1) Translational Neuroscience","MED-MIN16",12,null,null,"ISIS-001 Sustainable Management Resources"]
[null,null,null,null,null,null,null,null,null,null,null,null,"(BB1) Water- en natuurbeheer","NWI-MB023B",6]
[null,null,null,null,null,null,null,null,null,null,null,null,"(BB1) Water, Health & Development","NWI-BB079C",3]
[]
[null,null,null,null,null,null,null,null,null,null,null,null,"                          Category BB2"]
[null,null,null,null,null,null,null,null,null,null,null,null,"Belang van water","NWI-GCSE003",3]
[null,null,null,null,null,null,null,null,null,null,null,null,"Beleid, ondernemerschap en innovatie","NWI-GCSE007",3]
[null,null,null,null,null,null,null,null,null,null,null,null,"Biodiversiteit en ecosystemen","NWI-GCSE004",3]
[null,null,null,null,null,null,null,null,null,null,null,null,"Biological Invasions","NWI-BB088",6]
[null,null,null,null,null,null,null,null,null,null,null,null,"Chemical Neuroscience","NWI-MOL097",3]
[null,null,null,null,null,null,null,null,null,null,null,null,"Comparative Genomics","NWI-MOL073",3]
[null,null,null,null,null,null,null,null,null,null,null,null,"Crystal Growth","NWI-MOL071",3]
[null,null,null,null,null,null,null,null,null,null,null,null,"Debating Science in Society","NWI-FC0042B",3]
[null,null,null,null,null,null,null,null,null,null,null,null,"Debating Science: an introduction in ‘Science in Society'","NWI-FC0042B",3]
[null,null,null,null,null,null,null,null,null,null,null,null,"Duurzaam ondernemen","MAN-BKV55",6]
[null,null,null,null,null,null,null,null,null,null,null,null,"Energy and Sustainability","NWI-GCSE002",3]
[null,null,null,null,null,null,null,null,null,null,null,null,"Essentials of Organic Chemistry","NWI-MOL101",6]
[null,null,null,null,null,null,null,null,null,null,null,null,"Green Chemistry","NWI-MOL091",3]
[null,null,null,null,null,null,null,null,null,null,null,null,"Inleiding Educatie","NWI-ILSBI03",3]
[null,null,null,null,null,null,null,null,null,null,null,null,"Klimaatverandering: Wetenschap en Beleid","NWI-GCSE001",3]
[null,null,null,null,null,null,null,null,null,null,null,null,"Molecular Basis of Diseases","NWI-MOL055",6]
[null,null,null,null,null,null,null,null,null,null,null,null,"Nanobiotechnology","NWI-MOL078",6]
[null,null,null,null,null,null,null,null,null,null,null,null,"Organic Chemistry","NWI-MOL095",6]
[null,null,null,null,null,null,null,null,null,null,null,null,"Personalised Health(care)","NWI-GCSE009",3]
[null,null,null,null,null,null,null,null,null,null,null,null,"Pharmacochemistry","NWI-MOL053",6]
[null,null,null,null,null,null,null,null,null,null,null,null,"Physical Organic Chemistry","NWI-MOL094",3]
[null,null,null,null,null,null,null,null,null,null,null,null,"RNA structure and Function","NWI-MOL107",6]
[null,null,null,null,null,null,null,null,null,null,null,null,"Structure, Function and Bioinformatics","NWI-MOL066",6]
[null,null,null,null,null,null,null,null,null,null,null,null,"Student Company","NWI-GCSE008",6]
[null,null,null,null,null,null,null,null,null,null,null,null,"Thermodynamics 2","NWI-MOL040",3]
[null,null,null,null,null,null,null,null,null,null,null,null,"Toxicology","NWI-MOL054",6]
[]
[]
[]
[null,null,null,null,null,null,null,null,null,null,null,"2014 and","Differentiation courses 2014 and earlier: no categories"]
[null,null,null,null,null,null,null,null,null,null,null,"earlier"]
[null,null,null,null,null,null,null,null,null,null,null,null,"Please select your differentation course","",""]
[null,null,null,null,null,null,null,null,null,null,null,null,"","",""]
[null,null,null,null,null,null,null,null,null,null,null,null,"Adaptatiefysiologie","NWI-BB020B",6]
[null,null,null,null,null,null,null,null,null,null,null,null,"Advanced Population and Evolution Biology","NWI-BB087",6]
[null,null,null,null,null,null,null,null,null,null,null,null,"Applied and Environmental Microbiology","NWI-BB027B",6]
[null,null,null,null,null,null,null,null,null,null,null,null,"Applied Bioinformatics","NWI-BB051B",6]
[null,null,null,null,null,null,null,null,null,null,null,null,"Applied Ecology","NWI-BB036B",6]
[null,null,null,null,null,null,null,null,null,null,null,null,"Belang van water","NWI-GCSE003",3]
[null,null,null,null,null,null,null,null,null,null,null,null,"Beleid, ondernemerschap en innovatie","NWI-GCSE007",3]
[null,null,null,null,null,null,null,null,null,null,null,null,"Biochemie en Moleculaire biologie II","NWI-BB076C",6]
[null,null,null,null,null,null,null,null,null,null,null,null,"Biochemistry and Molecular Biology II","NWI-BB017C",6]
[null,null,null,null,null,null,null,null,null,null,null,null,"Biodiversiteit en ecosystemen","NWI-GCSE004",3]
[null,null,null,null,null,null,null,null,null,null,null,null,"Biologie en duurzame ontwikkeling","NWI-BB079B",6]
[null,null,null,null,null,null,null,null,null,null,null,null,"Biotechnologie van planten","NNWI-BB032B",6]
[null,null,null,null,null,null,null,null,null,null,null,null,"Biotechnology of Plants","NWI-BB032B",6]
[null,null,null,null,null,null,null,null,null,null,null,null,"Brain dynamics and connectivity","NWI-BB074B",6]
[null,null,null,null,null,null,null,null,null,null,null,null,"Celbiologie van Dieren","NWI-BB023B",6]
[null,null,null,null,null,null,null,null,null,null,null,null,"Chemical Neuroscience","NWI-MOL097",3]
[null,null,null,null,null,null,null,null,null,null,null,null,"Cognitive Neuroimaging","NWI-BB081B",6]
[null,null,null,null,null,null,null,null,null,null,null,null,"Conservation Genetics","NWI-BB050C",6]
[null,null,null,null,null,null,null,null,null,null,null,null,"Crystal Growth","NWI-MOL071",3]
[null,null,null,null,null,null,null,null,null,null,null,null,"Debating Science in Society","NWI-FC0042B",3]
[null,null,null,null,null,null,null,null,null,null,null,null,"Debating Science: an introduction in ‘Science in Society'","NWI-FC0042B",3]
[null,null,null,null,null,null,null,null,null,null,null,null,"Dierecologie","NWI-BB060B",6]
[null,null,null,null,null,null,null,null,null,null,null,null,"Duurzaam ondernemen","MAN-BKV55",6]
[null,null,null,null,null,null,null,null,null,null,null,null,"Ecofysiologie","NWI-BB018B",6]
[null,null,null,null,null,null,null,null,null,null,null,null,"Ecological Microbiology","NWI-BB027B",6]
[null,null,null,null,null,null,null,null,null,null,null,null,"Ecological Theory and Data Analysis","NWI-BB083B",6]
[null,null,null,null,null,null,null,null,null,null,null,null,"Ecologische Microbiologie","NWI-BB018B",6]
[null,null,null,null,null,null,null,null,null,null,null,null,"Endocrinologie","NWI-BB048B",6]
[null,null,null,null,null,null,null,null,null,null,null,null,"Energy and Sustainability","NWI-GCSE002",3]
[null,null,null,null,null,null,null,null,null,null,null,null,"Environmental Chemistry and Toxicology","NWI-BB082B",3]
[null,null,null,null,null,null,null,null,null,null,null,null,"Essentials of Organic Chemistry","NWI-MOL101",6]
[null,null,null,null,null,null,null,null,null,null,null,null,"Evolutiebiologie","NWI-BB040B",6]
[null,null,null,null,null,null,null,null,null,null,null,null,"Farmacochemie","NWI-MOL053",6]
[null,null,null,null,null,null,null,null,null,null,null,null,"Functional Genomics","NWI-BB064B",6]
[null,null,null,null,null,null,null,null,null,null,null,null,"Fysiologie van micro-organismen","NWI-BB024B",6]
[null,null,null,null,null,null,null,null,null,null,null,null,"Genomics Analysis of Plants","NWI-BB043B",6]
[null,null,null,null,null,null,null,null,null,null,null,null,"Genomics for Health and Environment","NWI-BB086",12]
[null,null,null,null,null,null,null,null,null,null,null,null,"Genoomanalyse van Planten","NWI-BB043B",6]
[null,null,null,null,null,null,null,null,null,null,null,null,"Geographic Information Systems (GIS)","NWI-MB021B",6]
[null,null,null,null,null,null,null,null,null,null,null,null,"Green Chemistry","NWI-MOL091",3]
[null,null,null,null,null,null,null,null,null,null,null,null,"Hersenen en Gedrag","NWI-BB085B",6]
[null,null,null,null,null,null,null,null,null,null,null,null,"Human and Ecological Risk Assessment","NWI-MB024C",6]
[null,null,null,null,null,null,null,null,null,null,null,null,"Human Embryology and Developmental Biology","NWI-BB047C",6]
[null,null,null,null,null,null,null,null,null,null,null,null,"Humane en Ecologische Risicobeoordeling (HERA)","NWI-MB024C",6]
[null,null,null,null,null,null,null,null,null,null,null,null,"Immunologie","NWI-BB019B",6]
[null,null,null,null,null,null,null,null,null,null,null,null,"Immunology","NWI-BB019B",6]
[null,null,null,null,null,null,null,null,null,null,null,null,"Inleiding Educatie","NWI-ILSBI03",3]
[null,null,null,null,null,null,null,null,null,null,null,null,"Inleiding in de aandoeningen van circulatie en respiratie en hyperlipidemie","NWI-BB075B3",6]
[null,null,null,null,null,null,null,null,null,null,null,null,"Inleiding in de aandoeningen van de tractus digestivus","NWI-BB075B4",6]
[null,null,null,null,null,null,null,null,null,null,null,null,"Inleiding in de Nefrologie & Urologie","NWI-BB075B5",6]
[null,null,null,null,null,null,null,null,null,null,null,null,"Inleiding in de oncologie, immunologie, hematologie en infectieziekten","NWI-BB075B2",6]
[null,null,null,null,null,null,null,null,null,null,null,null,"Introductie Communicatie ",null,3]
[null,null,null,null,null,null,null,null,null,null,null,null,"Introductie in de Geneeskunde (minor)","NWI-BB075B",6]
[null,null,null,null,null,null,null,null,null,null,null,null,"Klimaatverandering: Wetenschap en Beleid","NWI-GCSE001",3]
[null,null,null,null,null,null,null,null,null,null,null,null,"Kristalgroei","NWI-MOL071",3]
[null,null,null,null,null,null,null,null,null,null,null,null,"Medical biotechnology","NWI-MOL104",6]
[null,null,null,null,null,null,null,null,null,null,null,null,"Medische Biotechnologie","NWI-BB031B",6]
[null,null,null,null,null,null,null,null,null,null,null,null,"Medische pathologie","NWI-BB025B",6]
[null,null,null,null,null,null,null,null,null,null,null,null,"Methoden van geneeskunde","NWI-BB075B1",6]
[null,null,null,null,null,null,null,null,null,null,null,null,"Moleculaire basis van ziekten","NWI-MOL055",6]
[null,null,null,null,null,null,null,null,null,null,null,null,"Moleculaire populatie ecologie","NWI-BB050B",6]
[null,null,null,null,null,null,null,null,null,null,null,null,"Molecular Basis of Diseases","NWI-MOL055",6]
[null,null,null,null,null,null,null,null,null,null,null,null,"Molecular Principles of Development","NWI-BB084B",6]
[null,null,null,null,null,null,null,null,null,null,null,null,"Nanobiotechnologie","NWI-MOL078",6]
[null,null,null,null,null,null,null,null,null,null,null,null,"Nanobiotechnology","NWI-MOL078",6]
[null,null,null,null,null,null,null,null,null,null,null,null,"Neurobiofysica","NWI-BB021B",6]
[null,null,null,null,null,null,null,null,null,null,null,null,"Neurobiology","NWI-BB034B",6]
[null,null,null,null,null,null,null,null,null,null,null,null,"Neurobiophysics","NWI-BB021B",6]
[null,null,null,null,null,null,null,null,null,null,null,null,"Neurodevelopment","NWI-BB039C",6]
[null,null,null,null,null,null,null,null,null,null,null,null,"Neurofysiologie van cognitie en gedrag","NWI-BB080B",6]
[null,null,null,null,null,null,null,null,null,null,null,null,"Neurophysiology of Cognition and Behaviour","NWI-BB080B",6]
[null,null,null,null,null,null,null,null,null,null,null,null,"Neuropsychologie","NWI-BB061C",6]
[null,null,null,null,null,null,null,null,null,null,null,null,"Neuroscience: from Basics to Clinic","NWI-BB063B",6]
[null,null,null,null,null,null,null,null,null,null,null,null,"Neuroscience: v. Basis tot Kliniek","NWI-BB063B",6]
[null,null,null,null,null,null,null,null,null,null,null,null,"Organic Chemistry","NWI-MOL095",6]
[null,null,null,null,null,null,null,null,null,null,null,null,"Organische chemie 1","NWI-MOL060",6]
[null,null,null,null,null,null,null,null,null,null,null,null,"Pathofysiologie van de nier","NWI-BB065B",6]
[null,null,null,null,null,null,null,null,null,null,null,null,"Personalised Health(care)","NWI-GCSE009",3]
[null,null,null,null,null,null,null,null,null,null,null,null,"Pharmacochemistry","NWI-MOL053",6]
[null,null,null,null,null,null,null,null,null,null,null,null,"Physical Organic Chemistry","NWI-MOL094",3]
[null,null,null,null,null,null,null,null,null,null,null,null,"Physiology of Microorganisms","NWI-BB024B",6]
[null,null,null,null,null,null,null,null,null,null,null,null,"Plant Genome Analysis","NWI-BB043B",6]
[null,null,null,null,null,null,null,null,null,null,null,null,"RNA structure and Function","NWI-MOL107",6]
[null,null,null,null,null,null,null,null,null,null,null,null,"Statistiek II","NWI-BB077B",3]
[null,null,null,null,null,null,null,null,null,null,null,null,"Structuur Biomoleculen","NWI-MOL067",3]
[null,null,null,null,null,null,null,null,null,null,null,null,"Structuur, Functie en Bioinformatica","NWI-MOL066",6]
[null,null,null,null,null,null,null,null,null,null,null,null,"Structuurfuncties Bioinformatica","NWI-MOL066",6]
[null,null,null,null,null,null,null,null,null,null,null,null,"Student Company","NWI-GCSE008",6]
[null,null,null,null,null,null,null,null,null,null,null,null,"Systeemecologie","NWI-BB022B",6]
[null,null,null,null,null,null,null,null,null,null,null,null,"Thermodynamica 2","NWI-MOL040",3]
[null,null,null,null,null,null,null,null,null,null,null,null,"Toegepaste Bioinformatica","NWI-BB051B",6]
[null,null,null,null,null,null,null,null,null,null,null,null,"Toegepaste Ecologie","NWI-BB036B",6]
[null,null,null,null,null,null,null,null,null,null,null,null,"Toxicologie","NWI-MOL054",6]
[null,null,null,null,null,null,null,null,null,null,null,null,"Toxicology","NWI-MOL054",6]
[null,null,null,null,null,null,null,null,null,null,null,null,"Translational Neuroscience","MED-MIN16",12]
[null,null,null,null,null,null,null,null,null,null,null,null,"Vergelijkende genoomanalyse","NWI-MOL073",3]
[null,null,null,null,null,null,null,null,null,null,null,null,"Water- en natuurbeheer","NWI-MB023B",6]
[null,null,null,null,null,null,null,null,null,null,null,null,"Water, Health & Development","NWI-BB079C",3]
[]
[]
[null,null,null,null,null,null,null,null,null,null,null,2017,"Please select your differentation course","",""]
[null,null,null,null,null,null,null,null,null,null,null,null,"","",""]
[null,null,null,null,null,null,null,null,null,null,null,null,"                          Category BB2","",""]
[null,null,null,null,null,null,null,null,null,null,null,null,"(BB2) Adaptation physiology","NWI-BB020B",6]
[null,null,null,null,null,null,null,null,null,null,null,null,"(BB2) Advanced Population and Evolution Biology","NWI-BB087",6]
[null,null,null,null,null,null,null,null,null,null,null,null,"(BB2) Animal Cell Biology","NWI-BB023B",6]
[null,null,null,null,null,null,null,null,null,null,null,null,"(BB2) Applied and Environmental Microbiology","NWI-BB027B",6]
[null,null,null,null,null,null,null,null,null,null,null,null,"(BB2) Applied Bioinformatics","NWI-BB051B",6]
[null,null,null,null,null,null,null,null,null,null,null,null,"(BB2) Applied Ecology","NWI-BB036B",6]
[null,null,null,null,null,null,null,null,null,null,null,null,"(BB2) Biochemistry and Molecular Biology II","NWI-BB017C",6]
[null,null,null,null,null,null,null,null,null,null,null,null,"(BB2) Biologie en Samenleving","NWI-BB011B",3]
[null,null,null,null,null,null,null,null,null,null,null,null,"(BB2) Biotechnology of Plants","NWI-BB032B",6]
[null,null,null,null,null,null,null,null,null,null,null,null,"(BB2) Brain and behaviour","NWI-BB085B",6]
[null,null,null,null,null,null,null,null,null,null,null,null,"(BB2) Cognitive Neuroimaging","NWI-BB081B",6]
[null,null,null,null,null,null,null,null,null,null,null,null,"(BB2) Conservation Genetics","NWI-BB050C",6]
[null,null,null,null,null,null,null,null,null,null,null,null,"(BB2) Dierecologie","NWI-BB060B",6]
[null,null,null,null,null,null,null,null,null,null,null,null,"(BB2) Ecofysiologie van Planten","NWI-BB018C",6]
[null,null,null,null,null,null,null,null,null,null,null,null,"(BB2) Ecological Microbiology","NWI-BB027B",6]
[null,null,null,null,null,null,null,null,null,null,null,null,"(BB2) Ecological Theory and Data Analysis","NWI-BB083B",6]
[null,null,null,null,null,null,null,null,null,null,null,null,"(BB2) Endocrinology","NWI-BB048B",6]
[null,null,null,null,null,null,null,null,null,null,null,null,"(BB2) Functional Genomics","NWI-BB064B",6]
[null,null,null,null,null,null,null,null,null,null,null,null,"(BB2) Genomics for Health and Environment","NWI-BB086",12]
[null,null,null,null,null,null,null,null,null,null,null,null,"(BB2) Geographic Information Systems (GIS)","NWI-MB021B",6]
[null,null,null,null,null,null,null,null,null,null,null,null,"(BB2) Human and Ecological Risk Assessment","NWI-MB024C",6]
[null,null,null,null,null,null,null,null,null,null,null,null,"(BB2) Human Embryology and Developmental Biology","NWI-BB047C",6]
[null,null,null,null,null,null,null,null,null,null,null,null,"(BB2) Humane en Ecologische Risicobeoordeling (HERA)","NWI-MB024C",6]
[null,null,null,null,null,null,null,null,null,null,null,null,"(BB2) Immunology","NWI-BB019B",6]
[null,null,null,null,null,null,null,null,null,null,null,null,"(BB2) Man and Nature: Present, Past and Future","NWI-MB023B",6]
[null,null,null,null,null,null,null,null,null,null,null,null,"(BB2) Medical biotechnology","NWI-MOL104",6]
[null,null,null,null,null,null,null,null,null,null,null,null,"(BB2) Medical pathology","NWI-BB025B",6]
[null,null,null,null,null,null,null,null,null,null,null,null,"(BB2) Molecular Principles of Development","NWI-BB084B",6]
[null,null,null,null,null,null,null,null,null,null,null,null,"(BB2) Neurobiofysica","NWI-BB021B",6]
[null,null,null,null,null,null,null,null,null,null,null,null,"(BB2) Neurobiology","NWI-BB034B",6]
[null,null,null,null,null,null,null,null,null,null,null,null,"(BB2) Neurodevelopment","NWI-BB039C",6]
[null,null,null,null,null,null,null,null,null,null,null,null,"(BB2) Neurofysiologie van cognitie en gedrag","NWI-BB080B",6]
[null,null,null,null,null,null,null,null,null,null,null,null,"(BB2) Neurophysiology of Cognition and Behaviour","NWI-BB080B",6]
[null,null,null,null,null,null,null,null,null,null,null,null,"(BB2) Neuroscience: from Basics to Clinic","NWI-BB063B",6]
[null,null,null,null,null,null,null,null,null,null,null,null,"(BB2) Pathophysiology of the kidney","NWI-BB065B",6]
[null,null,null,null,null,null,null,null,null,null,null,null,"(BB2) Physiology of Microorganisms","NWI-BB024B",6]
[null,null,null,null,null,null,null,null,null,null,null,null,"(BB2) Plant Genome Analysis","NWI-BB043B",6]
[null,null,null,null,null,null,null,null,null,null,null,null,"(BB2) Statistiek II","NWI-BB077B",3]
[null,null,null,null,null,null,null,null,null,null,null,null,"(BB2) Systeemecologie","NWI-BB022B",6]
[null,null,null,null,null,null,null,null,null,null,null,null,"(BB2) Translational Neuroscience","MED-MIN16",12]
[null,null,null,null,null,null,null,null,null,null,null,null,"(BB2) Water, Health & Development","NWI-BB079C",3]
[null,null,null,null,null,null,null,null,null,null,null,null,"                          Category BB3"]
[null,null,null,null,null,null,null,null,null,null,null,null,"Belang van water","NWI-GCSE003",3]
[null,null,null,null,null,null,null,null,null,null,null,null,"Beleid, ondernemerschap en innovatie","NWI-GCSE007",3]
[null,null,null,null,null,null,null,null,null,null,null,null,"Biodiversiteit en ecosystemen","NWI-GCSE004",3]
[null,null,null,null,null,null,null,null,null,null,null,null,"Biological Invasions","NWI-BB088",6]
[null,null,null,null,null,null,null,null,null,null,null,null,"Chemical Neuroscience","NWI-MOL097",3]
[null,null,null,null,null,null,null,null,null,null,null,null,"Comparative Genomics","NWI-MOL073",3]
[null,null,null,null,null,null,null,null,null,null,null,null,"Crystal Growth","NWI-MOL071",3]
[null,null,null,null,null,null,null,null,null,null,null,null,"Debating Science in Society","NWI-FC0042B",3]
[null,null,null,null,null,null,null,null,null,null,null,null,"Debating Science: an introduction in ‘Science in Society'","NWI-FC0042B",3]
[null,null,null,null,null,null,null,null,null,null,null,null,"Duurzaam ondernemen","MAN-BKV55",6]
[null,null,null,null,null,null,null,null,null,null,null,null,"Energy and Sustainability","NWI-GCSE002",3]
[null,null,null,null,null,null,null,null,null,null,null,null,"Essentials of Organic Chemistry","NWI-MOL101",6]
[null,null,null,null,null,null,null,null,null,null,null,null,"Green Chemistry","NWI-MOL091",3]
[null,null,null,null,null,null,null,null,null,null,null,null,"Inleiding Educatie","NWI-ILSBI03",3]
[null,null,null,null,null,null,null,null,null,null,null,null,"Klimaatverandering: Wetenschap en Beleid","NWI-GCSE001",3]
[null,null,null,null,null,null,null,null,null,null,null,null,"Molecular Basis of Diseases","NWI-MOL055",6]
[null,null,null,null,null,null,null,null,null,null,null,null,"Nanobiotechnology","NWI-MOL078",6]
[null,null,null,null,null,null,null,null,null,null,null,null,"Organic Chemistry","NWI-MOL095",6]
[null,null,null,null,null,null,null,null,null,null,null,null,"Personalised Health(care)","NWI-GCSE009",3]
[null,null,null,null,null,null,null,null,null,null,null,null,"Pharmacochemistry","NWI-MOL053",6]
[null,null,null,null,null,null,null,null,null,null,null,null,"Physical Organic Chemistry","NWI-MOL094",3]
[null,null,null,null,null,null,null,null,null,null,null,null,"RNA structure and Function","NWI-MOL107",6]
[null,null,null,null,null,null,null,null,null,null,null,null,"Structure, Function and Bioinformatics","NWI-MOL066",6]
[null,null,null,null,null,null,null,null,null,null,null,null,"Student Company","NWI-GCSE008",6]
[null,null,null,null,null,null,null,null,null,null,null,null,"Thermodynamics 2","NWI-MOL040",3]
[null,null,null,null,null,null,null,null,null,null,null,null,"Toxicology","NWI-MOL054",6]
[]
[null,null,null,null,null,null,null,null,null,null,null,2018,"Please select your differentation course",""]
[null,null,null,null,null,null,null,null,null,null,null,null,"",""]
[null,null,null,null,null,null,null,null,null,null,null,null,"                          Category BB2",""]
[null,null,null,null,null,null,null,null,null,null,null,null,"(BB2) Adaptation physiology","NWI-BB020B",6]
[null,null,null,null,null,null,null,null,null,null,null,null,"(BB2) Advanced Population and Evolution Biology","NWI-BB087",6]
[null,null,null,null,null,null,null,null,null,null,null,null,"(BB2) Animal Cell Biology","NWI-BB023B",6]
[null,null,null,null,null,null,null,null,null,null,null,null,"(BB2) Applied and Environmental Microbiology","NWI-BB027C",6]
[null,null,null,null,null,null,null,null,null,null,null,null,"(BB2) Applied Bioinformatics","NWI-BB051B",6]
[null,null,null,null,null,null,null,null,null,null,null,null,"(BB2) Applied ecology","NWI-BB036B",6]
[null,null,null,null,null,null,null,null,null,null,null,null,"(BB2) Biochemistry and Molecular Biology II","NWI-BB017C",6]
[null,null,null,null,null,null,null,null,null,null,null,null,"(BB2) Biological Invasions","NWI-BB088",6]
[null,null,null,null,null,null,null,null,null,null,null,null,"(BB2) Biologie en Samenleving","NWI-BB011B",3]
[null,null,null,null,null,null,null,null,null,null,null,null,"(BB2) Biotechnology of Plants","NWI-BB032B",6]
[null,null,null,null,null,null,null,null,null,null,null,null,"(BB2) Brain and behaviour","NWI-BB085B",6]
[null,null,null,null,null,null,null,null,null,null,null,null,"(BB2) Cognitive Neuroimaging","NWI-BB081B",6]
[null,null,null,null,null,null,null,null,null,null,null,null,"(BB2) Dierecologie","NWI-BB060B",6]
[null,null,null,null,null,null,null,null,null,null,null,null,"(BB2) Ecofysiologie van Planten","NWI-BB018C",6]
[null,null,null,null,null,null,null,null,null,null,null,null,"(BB2) Ecological Theory and Data Analysis","NWI-BB083B",6]
[null,null,null,null,null,null,null,null,null,null,null,null,"(BB2) Endocrinology","NWI-BB048B",6]
[null,null,null,null,null,null,null,null,null,null,null,null,"(BB2) Functional Genomics","NWI-BB064B",6]
[null,null,null,null,null,null,null,null,null,null,null,null,"(BB2) Genomics for Health and Environment","NWI-BB086",12]
[null,null,null,null,null,null,null,null,null,null,null,null,"(BB2) Geographic Information Systems (GIS)","NWI-MB021B",6]
[null,null,null,null,null,null,null,null,null,null,null,null,"(BB2) Human and Ecological Risk Assessment","NWI-MB024C",6]
[null,null,null,null,null,null,null,null,null,null,null,null,"(BB2) Human Embryology and Developmental Biology","NWI-BB047C",6]
[null,null,null,null,null,null,null,null,null,null,null,null,"(BB2) Humane en Ecologische Risicobeoordeling (HERA)","NWI-MB024C",6]
[null,null,null,null,null,null,null,null,null,null,null,null,"(BB2) Immunology","NWI-BB019B",6]
[null,null,null,null,null,null,null,null,null,null,null,null,"(BB2) Man and Nature: Present, Past and Future","NWI-MB023C",6]
[null,null,null,null,null,null,null,null,null,null,null,null,"(BB2) Medical biotechnology","NWI-MOL104",6]
[null,null,null,null,null,null,null,null,null,null,null,null,"(BB2) Medical pathology","NWI-BB025B",6]
[null,null,null,null,null,null,null,null,null,null,null,null,"(BB2) Molecular Principles of Development","NWI-BB084B",6]
[null,null,null,null,null,null,null,null,null,null,null,null,"(BB2) Neurobiofysica","NWI-BB021B",6]
[null,null,null,null,null,null,null,null,null,null,null,null,"(BB2) Neurobiology","NWI-BB034B",6]
[null,null,null,null,null,null,null,null,null,null,null,null,"(BB2) Neurodevelopment","NWI-BB039C",6]
[null,null,null,null,null,null,null,null,null,null,null,null,"(BB2) Neurofysiologie van cognitie en gedrag","NWI-BB080B",6]
[null,null,null,null,null,null,null,null,null,null,null,null,"(BB2) Neurophysiology of Cognition and Behaviour","NWI-BB080B",6]
[null,null,null,null,null,null,null,null,null,null,null,null,"(BB2) Neuroscience: from Basics to Clinic","NWI-BB063B",6]
[null,null,null,null,null,null,null,null,null,null,null,null,"(BB2) Pathophysiology of the kidney","NWI-BB065B",6]
[null,null,null,null,null,null,null,null,null,null,null,null,"(BB2) Physiology of Microorganisms","NWI-BB024B",6]
[null,null,null,null,null,null,null,null,null,null,null,null,"(BB2) Plant Genome Analysis","NWI-BB043B",6]
[null,null,null,null,null,null,null,null,null,null,null,null,"(BB2) Statistiek II","NWI-BB077B",3]
[null,null,null,null,null,null,null,null,null,null,null,null,"(BB2) Systeemecologie","NWI-BB022B",6]
[null,null,null,null,null,null,null,null,null,null,null,null,"(BB2) Translational Neuroscience","MED-MIN16",12]
[null,null,null,null,null,null,null,null,null,null,null,null,"(BB2) Water, Health & Development","NWI-BB079C",3]
[null,null,null,null,null,null,null,null,null,null,null,null,"                          Category BB3"]
[null,null,null,null,null,null,null,null,null,null,null,null,"Beleid, ondernemerschap en innovatie","NWI-GCSE007",3]
[null,null,null,null,null,null,null,null,null,null,null,null,"Bioinformatics A","NWI-MOL075",3]
[null,null,null,null,null,null,null,null,null,null,null,null,"Biological Invasions","NWI-BB088",6]
[null,null,null,null,null,null,null,null,null,null,null,null,"Comparative Genomics","NWI-MOL073",3]
[null,null,null,null,null,null,null,null,null,null,null,null,"Crystal Growth","NWI-MOL071",3]
[null,null,null,null,null,null,null,null,null,null,null,null,"Debating Science in Society","NWI-FC0042B",3]
[null,null,null,null,null,null,null,null,null,null,null,null,"Debating Science: an introduction in ‘Science in Society'","NWI-FC0042B",3]
[null,null,null,null,null,null,null,null,null,null,null,null,"Duurzaam ondernemen","MAN-BKV55",6]
[null,null,null,null,null,null,null,null,null,null,null,null,"Energy and Sustainability","NWI-GCSE002",3]
[null,null,null,null,null,null,null,null,null,null,null,null,"Essentials of Organic Chemistry","NWI-MOL101",6]
[null,null,null,null,null,null,null,null,null,null,null,null,"Green Chemistry","NWI-MOL091",3]
[null,null,null,null,null,null,null,null,null,null,null,null,"Inleiding Educatie","NWI-FNWI006",3]
[null,null,null,null,null,null,null,null,null,null,null,null,"Klimaatverandering: Wetenschap en Beleid","NWI-GCSE001",3]
[null,null,null,null,null,null,null,null,null,null,null,null,"Molecular Basis of Diseases","NWI-MOL055",6]
[null,null,null,null,null,null,null,null,null,null,null,null,"Nanobiotechnology","NWI-MOL078",6]
[null,null,null,null,null,null,null,null,null,null,null,null,"Pharmacochemistry","NWI-MOL053",6]
[null,null,null,null,null,null,null,null,null,null,null,null,"RNA structure and Function","NWI-MOL107",6]
[null,null,null,null,null,null,null,null,null,null,null,null,"Structure, Function and Bioinformatics","NWI-MOL066",6]
[null,null,null,null,null,null,null,null,null,null,null,null,"Student Company","NWI-GCSE008",6]
[null,null,null,null,null,null,null,null,null,null,null,null,"Toxicology","NWI-MOL054",6]

{"sheet":"temp","index":4,"n_rows":100,"n_cols":3,"rows_kept":100,"cut":false,"hidden":true,"merged":[]}
["Choose your differentiation course","",""]
["","",""]
["Adaptatiefysiologie","NWI-BB020B",6]
["Advanced Population and Evolution Biology","NWI-BB087",6]
["Applied and Environmental Microbiology","NWI-BB027B",6]
["Applied Bioinformatics","NWI-BB051B",6]
["Applied Ecology","NWI-BB036B",6]
["Belang van water","NWI-GCSE003",3]
["Beleid, ondernemerschap en innovatie","NWI-GCSE007",3]
["Biochemie en Moleculaire biologie II","NWI-BB076C",6]
["Biochemistry and Molecular Biology II","NWI-BB017C",6]
["Biodiversiteit en ecosystemen","NWI-GCSE004",3]
["Biologie en duurzame ontwikkeling","NWI-BB079B",6]
["Biotechnologie van planten","NNWI-BB032B",6]
["Biotechnology of Plants","NWI-BB032B",6]
["Brain dynamics and connectivity","NWI-BB074B",6]
["Celbiologie van Dieren","NWI-BB023B",6]
["Chemical Neuroscience","NWI-MOL097",3]
["Cognitive Neuroimaging","NWI-BB081B",6]
["Conservation Genetics","NWI-BB050C",6]
["Crystal Growth","NWI-MOL071",3]
["Debating Science in Society","NWI-FC0042B",3]
["Debating Science: an introduction in ‘Science in Society'","NWI-FC0042B",3]
["Dierecologie","NWI-BB060B",6]
["Duurzaam ondernemen","MAN-BKV55",6]
["Ecofysiologie","NWI-BB018B",6]
["Ecological Microbiology","NWI-BB027B",6]
["Ecological Theory and Data Analysis","NWI-BB083B",6]
["Ecologische Microbiologie","NWI-BB018B",6]
["Endocrinologie","NWI-BB048B",6]
["Energy and Sustainability","NWI-GCSE002",3]
["Environmental Chemistry and Toxicology","NWI-BB082B",3]
["Essentials of Organic Chemistry","NWI-MOL101",6]
["Evolutiebiologie","NWI-BB040B",6]
["Farmacochemie","NWI-MOL053",6]
["Functional Genomics","NWI-BB064B",6]
["Fysiologie van micro-organismen","NWI-BB024B",6]
["Genomics Analysis of Plants","NWI-BB043B",6]
["Genomics for Health and Environment","NWI-BB086",6]
["Genoomanalyse van Planten","NWI-BB043B",6]
["Geographic Information Systems (GIS)","NWI-MB021B",6]
["Green Chemistry","NWI-MOL091",3]
["Hersenen en Gedrag","NWI-BB085B",6]
["History of Biology","NWI-BB028B",6]
["Human and Ecological Risk Assessment","NWI-MB024C",6]
["Human Embryology and Developmental Biology","NWI-BB047C",6]
["Humane en Ecologische Risicobeoordeling (HERA)","NWI-MB024C",6]
["Immunologie","NWI-BB019B",6]
["Immunology","NWI-BB019B",6]
["Inleiding in de aandoeningen van circulatie en respiratie en hyperlipidemie","NWI-BB075B3",6]
["Inleiding in de aandoeningen van de tractus digestivus","NWI-BB075B4",6]
["Inleiding in de Nefrologie & Urologie","NWI-BB075B5",6]
["Inleiding in de oncologie, immunologie, hematologie en infectieziekten","NWI-BB075B2",6]
["Introductie Communicatie ",null,3]
["Introductie in de Geneeskunde (minor)","NWI-BB075B",6]
["Klimaatverandering: Wetenschap en Beleid","NWI-GCSE001",3]
["Kristalgroei","NWI-MOL071",3]
["Medical biotechnology","NWI-MOL104",6]
["Medische Biotechnologie","NWI-BB031B",6]
["Medische pathologie","NWI-BB025B",6]
["Methoden van geneeskunde","NWI-BB075B1",6]
["Moleculaire basis van ziekten","NWI-MOL055",6]
["Moleculaire populatie ecologie","NWI-BB050B",6]
["Molecular Basis of Diseases","NWI-MOL055",6]
["Molecular Principles of Development","NWI-BB084B",6]
["Nanobiotechnologie","NWI-MOL078",6]
["Nanobiotechnology","NWI-MOL078",6]
["Neurobiofysica","NWI-BB021B",6]
["Neurobiology","NWI-BB034B",6]
["Neurobiophysics","NWI-BB021B",6]
["Neurodevelopment","NWI-BB039C",6]
["Neurofysiologie van cognitie en gedrag","NWI-BB080B",6]
["Neurophysiology of Cognition and Behaviour","NWI-BB080B",6]
["Neuropsychologie","NWI-BB061C",6]
["Neuroscience: from Basics to Clinic","NWI-BB063B",6]
["Neuroscience: v. Basis tot Kliniek","NWI-BB063B",6]
["Organic Chemistry","NWI-MOL095",6]
["Organische chemie 1","NWI-MOL060",6]
["Pathofysiologie van de nier","NWI-BB065B",6]
["Personalised Health(care)","NWI-GCSE009",3]
["Pharmacochemistry","NWI-MOL053",6]
["Physical Organic Chemistry","NWI-MOL094",3]
["Physiology of Microorganisms","NWI-BB024B",6]
["Plant Genome Analysis","NWI-BB043B",6]
["RNA structure and Function","NWI-MOL107",6]
["Statistiek II","NWI-BB077B",3]
["Structuur Biomoleculen","NWI-MOL067",3]
["Structuur, Functie en Bioinformatica","NWI-MOL066",6]
["Structuurfuncties Bioinformatica","NWI-MOL066",6]
["Student Company","NWI-GCSE008",6]
["Systeemecologie","NWI-BB022B",6]
["Thermodynamica 2","NWI-MOL040",3]
["Toegepaste Bioinformatica","NWI-BB051B",6]
["Toegepaste Ecologie","NWI-BB036B",6]
["Toxicologie","NWI-MOL054",6]
["Toxicology","NWI-MOL054",6]
["Translational Neuroscience","MED-MIN16",12]
["Vergelijkende genoomanalyse","NWI-MOL073",3]
["Water- en natuurbeheer","NWI-MB023B",6]
["Water, Health & Development","NWI-BB079C",6]